{"text_format":"3","workbook":"xlsx","n_sheets":13,"sheets":["Покупка+стройка","Настройки калькулятора","График на 1-2 года","Покупка+стройка (драфт)","Ввод параметров для расчетов","Расчеты","Матрица КВ","Ввод параметров","Участники","Материалы стен","Матрица ставок_Инфо","Матрица по аккред._Инфо","Участники_проверка на заведении"],"not_rendered":{"images":4,"macros":1,"defined_names":5,"comments":4},"read":"whole","date_system":"1900"}

{"sheet":"Покупка+стройка","index":0,"n_rows":47,"n_cols":22,"rows_kept":47,"hidden":true,"merged":[[18,5,18,6],[18,7,18,9],[19,5,19,6],[19,7,19,9],[20,7,20,9],[36,4,36,6],[37,4,37,6],[38,4,38,6],[39,4,39,6],[40,4,40,6],[41,4,41,6]]}
[null,null,"ИЗМЕНЯЕМЫЕ ЯЧЕЙКИ"]
[]
[]
[null,null,"КЛЮЧЕВЫЕ ПАРАМЕТРЫ КРЕДИТОВАНИЯ",null,null,"ОБЗОР ИТОГОВЫХ ПАРАМЕТРОВ"]
[{"$nulls":20},"Да"]
[null,null,"Личное страхование","Да",null,null,"Стандартные условия","Выгодные условия с субсидированием","Условия по земле","Итоговые условия субсидирования (земли + подряд)",{"$nulls":10},"Нет"]
[null,null,"Регион приобретения недвижимости","Краснодарский край",null,"Стоимость земли",{"$f":"D20","v":{"v":1000000,"d":"1,000,000.00 "}},null,{"$f":"D20","v":{"v":1000000,"d":"1,000,000.00 "}},{"$f":"I7","v":{"v":1000000,"d":"1,000,000.00 "}}]
[null,null,"Категория подрядчика","Стандарт",null,"Стоимость по договору подряда (с учетом удорожания)",{"$f":"D21","v":{"v":8000000,"d":"8,000,000.00 "}},{"$f":"D21+H21","v":{"$error":"#VALUE!"}},null,{"$f":"H8","v":{"$error":"#VALUE!"}}]
[null,null,"Особенности расчетов по сделке","Обычная сделка",null,"Максимальная сумма кредита",{"$f":"(G7+G8)*$M$10","v":{"v":7191000,"d":"7,191,000.00 "}},{"$f":"H8*$M$10","v":{"$error":"#VALUE!"}},{"$f":"I7*$M$10","v":{"v":799000,"d":"799,000.00 "}},{"$f":"H9+I9","v":{"$error":"#VALUE!"}}]
[{"$nulls":5},"Минимальный размер ПВ (с учетом удорожания стройки)",null,{"$f":"H8*(100%-$M$10)","v":{"$error":"#VALUE!"}},{"$f":"I7*(100%-$M$10)","v":{"v":200999.99999999997,"d":"201,000.00 "}},{"$f":"H10+I10","v":{"$error":"#VALUE!"}},null,null,{"v":0.799,"d":"79.90%"},{"$nulls":7},"Цели кредита","Подрядчики"]
[null,null,"Процентная ставка (до субсидирования)",{"$f":"IF(D6=\"Нет\",'Матрица ставок_Инфо'!H17,IF(D6=\"Да\",'Матрица ставок_Инфо'!H18,\"\"))","v":{"v":0.275,"d":"27.50%"}},null,"Фактический размер ПВ (с учетом удорожания стройки)",{"$f":"D25+D31","v":{"v":1809000,"d":"1,809,000.00 "}},{"v":1831425.33,"d":"1,831,425.33 "},{"v":201000,"d":"201,000.00 "},{"$f":"H11+I11","v":{"v":2032425.33,"d":"2,032,425.33 "}},{"$nulls":10},"Строительство дома на своем участке","Стандарт"]
[null,null,"Дисконт к ставке (на весь срок кредитования)",{"v":0.085,"d":"8.50%"},null,"Итоговая сумма кредита",{"$f":"IF(OR(G11=\"\",G11=0,G11<G10),\"\",G7+G8-G11)","v":{"v":7191000,"d":"7,191,000.00 "}},{"$f":"IF(OR(H11=\"\",H11=0,H11<H10),\"\",H8-H11)","v":{"$error":"#VALUE!"}},{"$f":"IF(OR(I7=\"\",I7=0),\"\",IF(OR(I11=\"\",I11=0,I11<I10),\"\",I7-I11))","v":{"v":799000,"d":"799,000.00 "}},{"$f":"IF(OR(I7=\"\",I7=0),H12,IF(OR(I12=\"\",I12=0),\"\",(H12+I12)))","v":{"$error":"#VALUE!"}},{"$nulls":10},"Покупка земли и строительство дома","Ключевой"]
[null,null,"Срок действия льготной ставки","весь срок",null,"Ставка по кредиту ",{"$f":"IF(D6=\"Нет\",'Матрица ставок_Инфо'!H17,IF(D6=\"Да\",'Матрица ставок_Инфо'!H18,\"\"))","v":{"v":0.275,"d":"27.50%"}},{"$f":"G13-D12","v":{"v":0.19,"d":"19.00%"}},{"$f":"IF(OR(I7=\"\",I7=0),\"\",IF(D6=\"Нет\",'Матрица ставок_Инфо'!H17,IF(D6=\"Да\",'Матрица ставок_Инфо'!H18,\"\")))","v":{"v":0.275,"d":"27.50%"}},{"$f":"IF(OR(I7=\"\",I7=0),H13,IF(OR(I12=\"\",I12=0),\"\",IF(OR(I7=\"\",I7=0),H13,SUMPRODUCT(H12:I12,H13:I13)/(H12+I12))))","v":{"$error":"#VALUE!"}},null,null,"СИ","СИ для ДФО","ГП","IT","Комбо-транш","Базовая"]
[null,null,"Итоговая процентная ставка ",{"$f":"D11-D12","v":{"v":0.19,"d":"19.00%"}},null,"Платеж по кредиту",{"$f":"PMT(G13/12,D19,G12)","v":{"v":-164838.9238964636,"d":"-164,838.92 ₽"}},{"$f":"PMT(H13/12,D19,H12)","v":{"$error":"#VALUE!"}},{"$f":"IF(OR(I12=\"\",I12=0),\"\",PMT(I13/12,D19,I12))","v":{"v":-18315.435988495952,"d":"-18,315.44 ₽"}},{"$f":"IF(OR(I7=\"\",I7=0),H14,IF(OR(J12=\"\",J12=0),\"\",IF(OR(I7=\"\",I7=0),H14,PMT(J13/12,D19,J12))))","v":{"$error":"#VALUE!"}},null,"Клиент \"улица\" или зп-клиент (НЕ А-Клуб/Сотрудники) \nБЕЗ личного страхования",{"$f":"'Матрица ставок_Инфо'!C17","v":{"v":0.06,"d":"6.0%"}},{"$f":"'Матрица ставок_Инфо'!D17","v":{"v":0.05,"d":"5.0%"}},{"$f":"'Матрица ставок_Инфо'!E17","v":{"v":0.09,"d":"9.0%"}},{"$f":"'Матрица ставок_Инфо'!F17","v":{"v":0.06,"d":"6.0%"}},{"$f":"'Матрица ставок_Инфо'!G17","v":{"v":0.24000000000000002,"d":"24.0%"}},{"$f":"'Матрица ставок_Инфо'!H17","v":{"v":0.28500000000000003,"d":"28.5%"}},{"$f":"'Матрица ставок_Инфо'!H21","v":{"v":0.28500000000000003,"d":"28.5%"}}]
[null,null,"Размер КВ,%",{"$f":"IF(D12=12.5%,N21,IF(D12=11.5%,N23,IF(D12=10.5%,N25,IF(D12=9.5%,N29,IF(D12=8.5%,N30,IF(D12=7.5%,N31,IF(D12=6.5%,#REF!,\"\")))))))","v":{"v":0.19627222752354678,"d":"19.63%"}},null,"Процентная переплата",{"$f":"IF(D13=\"весь срок\",G14*D19+G12,\"\")","v":{"v":-52480690.450519815,"d":"-52,480,690.45 "}},{"$f":"IF(D13=\"весь срок\",(H14*D19+H12),\"\")","v":{"$error":"#VALUE!"}},{"$f":"IF(D13=\"весь срок\",(I14*D19+I12),\"\")","v":{"v":-5831187.827835535,"d":"-5,831,187.83 "}},{"$f":"IF(OR(I7=\"\",I7=0),H15,IF(OR(J12=\"\",J12=0),\"\",IF(D13=\"весь срок\",J14*D19+J12,\"\")))","v":{"$error":"#VALUE!"}},null,"Клиент \"улица\" или зп-клиент (НЕ А-Клуб/Сотрудники) \nС договором личного страхования",{"$f":"'Матрица ставок_Инфо'!C18","v":{"v":0.06,"d":"6.0%"}},{"$f":"'Матрица ставок_Инфо'!D18","v":{"v":0.05,"d":"5.0%"}},{"$f":"'Матрица ставок_Инфо'!E18","v":{"v":0.08,"d":"8.0%"}},{"$f":"'Матрица ставок_Инфо'!F18","v":{"v":0.06,"d":"6.0%"}},{"$f":"'Матрица ставок_Инфо'!G18","v":{"v":0.23,"d":"23.0%"}},{"$f":"'Матрица ставок_Инфо'!H18","v":{"v":0.275,"d":"27.5%"}},{"$f":"'Матрица ставок_Инфо'!H22","v":{"v":0.275,"d":"27.5%"}}]
[null,null,"Доля базового КВ в счет увеличения стоимости",{"v":1,"d":"100.00%"}]
[null,null,"ЗАПРАШИВАЕМЫЕ ПАРАМЕТРЫ КРЕДИТОВАНИЯ",{"$nulls":3},{"$f":"IF(AND(G11<G10,G11>0),\"Внимание! Необходимо увеличить ПВ (не может быть ниже минимального)\",\"\")","v":""},{"$f":"IF(AND(H11<H10,H11>0),\"Внимание! Необходимо увеличить ПВ (не может быть ниже минимального)\",\"\")","v":{"$error":"#VALUE!"}},{"$f":"IF(AND(I11<I10,I11>0),\"Внимание! Необходимо увеличить ПВ (не может быть ниже минимального)\",\"\")","v":""},null,null,"Клиент А-Клуб/Сотрудники\nБЕЗ личного страхования",{"$f":"'Матрица ставок_Инфо'!C19","v":{"v":0.06,"d":"6.0%"}},{"$f":"'Матрица ставок_Инфо'!D19","v":{"v":0.05,"d":"5.0%"}},{"$f":"'Матрица ставок_Инфо'!E19","v":{"v":0.09,"d":"9.0%"}},{"$f":"'Матрица ставок_Инфо'!F19","v":{"v":0.06,"d":"6.0%"}},{"$f":"'Матрица ставок_Инфо'!G19","v":{"v":0.24000000000000002,"d":"24.0%"}},{"$f":"'Матрица ставок_Инфо'!H19","v":{"v":0.28500000000000003,"d":"28.5%"}},{"$f":"'Матрица ставок_Инфо'!H23","v":{"v":0.28500000000000003,"d":"28.5%"}}]
[{"$nulls":11},"Клиент А-Клуб/Сотрудники\nС договором личного страхования",{"$f":"'Матрица ставок_Инфо'!C20","v":{"v":0.06,"d":"6.0%"}},{"$f":"'Матрица ставок_Инфо'!D20","v":{"v":0.05,"d":"5.0%"}},{"$f":"'Матрица ставок_Инфо'!E20","v":{"v":0.08,"d":"8.0%"}},{"$f":"'Матрица ставок_Инфо'!F20","v":{"v":0.06,"d":"6.0%"}},{"$f":"'Матрица ставок_Инфо'!G20","v":{"v":0.23,"d":"23.0%"}},{"$f":"'Матрица ставок_Инфо'!H20","v":{"v":0.275,"d":"27.5%"}},{"$f":"'Матрица ставок_Инфо'!H24","v":{"v":0.275,"d":"27.5%"}},null,1]
[null,null,"Срок кредитования",{"v":362,"d":"362.00 "},null,"Выгода по ежемесячному платежу",null,{"$f":"IF(OR(I7=\"\",I7=0),H14-G14,J14-G14)","v":{"$error":"#VALUE!"}}]
[null,null,"Стоимость земли",{"v":1000000,"d":"1,000,000.00 "},null,"Выгода по процентной переплате (с учетом увеличения стоимости подряда)",null,{"$f":"IF(D13=\"весь срок\",J15-G15,\"\")","v":{"$error":"#VALUE!"}},{"$nulls":4},"Размеры дисконтов","Матрица КВ","Доля КВ"]
[null,null,"Стоимость строительства",{"v":8000000,"d":"8,000,000.00 "},{"$f":"IF(MOD(D19-2,12)>0,\"Срок кредитования должен быть кратен 12 мес + 2 мес.\",\"\")","v":""},"КВ Банку (с учетом удорожения стоимости строительства)",null,{"$f":"H12*D15","v":{"$error":"#VALUE!"}},{"$nulls":4},{"v":0.125,"d":"12.50%"},{"$f":"'Матрица КВ'!#REF!","v":{"$error":"#REF!"}},{"v":1,"d":"100%"},null,null,"весь срок",null,null,"Категория клиента","Улица или зарплатник"]
[null,null,"Минимальный размер ПВ, из них:",{"$f":"(D20+D21)*(100%-M10)","v":{"v":1808999.9999999995,"d":"1,809,000.00 "}},{"$nulls":13},"1 год"]
[null,null,"- минимальный ПВ на землю",{"$f":"(D20)*(100%-M10)","v":{"v":200999.99999999997,"d":"201,000.00 "}},{"$nulls":8},{"v":0.115,"d":"11.50%"},{"$f":"'Матрица КВ'!E9","v":{"v":0,"d":"0.00%"}},{"v":0.5,"d":"50%"},null,null,"2 года",{"$nulls":3},"Сотрудник/А-Клуб"]
[null,null,"- минимальный ПВ на строительство дома",{"$f":"(D21)*(100%-M10)","v":{"v":1607999.9999999998,"d":"1,608,000.00 "}}]
[null,null,"Размер собственных средств (ПВ)_без учета МСК, из них:",{"v":1809000,"d":"1,809,000.00 "},null,{"$f":"IF((D25+D31)<((100%-M10)*(D20+D21)),\"Размер ПВ не может быть меньше\",\"\")","v":""},{"$f":"IF((D25+D31)<((100%-M10)*(D20+D21)),(D20+D21)*(100%-M10),\"\")","v":""},{"$nulls":5},{"v":0.105,"d":"10.50%"},{"$f":"'Матрица КВ'!E8","v":{"v":0,"d":"0.00%"}},{"v":0.25,"d":"25%"}]
[null,null,"- собственные средства на покупку земли",{"v":201000,"d":"201,000.00 "},null,{"$f":"IF((D26)<((100%-M10)*(D20)),\"Размер ПВ не может быть меньше\",\"\")","v":""},{"$f":"IF((D26)<((100%-M10)*(D20)),(D20)*(100%-M10),\"\")","v":""}]
[null,null,"- собственные средства на строительство дома",{"v":1608000,"d":"1,608,000.00 "},null,{"$f":"IF((D27)<((100%-M10)*(D21)),\"Размер ПВ не может быть меньше\",\"\")","v":""},{"$f":"IF((D27)<((100%-M10)*(D21)),(D20)*(100%-M10),\"\")","v":""}]
[]
[{"$nulls":5},{"$f":"IF(D25<((100%-M10)*(D20+D21)),(100%-M10)*(D20+D21),\"\")","v":""},{"$nulls":6},{"v":0.095,"d":"9.50%"},{"$f":"'Матрица КВ'!E7","v":{"v":0.21926074369560777,"d":"21.93%"}},{"v":0,"d":"0%"},{"$nulls":6},"Да"]
[{"$nulls":12},{"v":0.085,"d":"8.50%"},{"$f":"'Матрица КВ'!E6","v":{"v":0.19627222752354678,"d":"19.63%"}},{"$nulls":7},"Нет"]
[null,null,"Размер МСК в счет ПВ (может идти только на стройку)",0,{"$nulls":8},{"v":0.075,"d":"7.50%"},{"$f":"'Матрица КВ'!E5","v":{"v":0.1734126713602916,"d":"17.34%"}}]
[null,null,"Размер кредитных средств, из них:",{"$f":"D20+D21-D25-D31","v":{"v":7191000,"d":"7,191,000.00 "}},null,{"$f":"IF(AND(OR(D7=\"МиМО/СПбиЛО\",D7=\"Краснодарский край\"),D32>50000000),\"ВНИМАНИЕ, сумма кредита не может быть больше 50 млн руб.\",IF(D32>30000000,\"ВНИМАНИЕ, сумма кредита не может быть больше 30 млн руб.\",\"\"))","v":""},{"$nulls":14},"Специфика расчетов","Обычная сделка"]
[null,null,"- кредитные средства на покупку земли",{"$f":"D20-D26","v":{"v":799000,"d":"799,000.00 "}}]
[null,null,"- кредитные средства на строительство дома",{"$f":"D21-D27","v":{"v":6392000,"d":"6,392,000.00 "}}]
[null,null,"К/З",{"$f":"D32/(D20+D21)","v":{"v":0.799,"d":"79.90%"}},{"$nulls":17},"GoodWood"]
[null,null,"РАСПРЕДЕЛЕНИЕ СРЕДСТВ ПО АККРЕДИТИВАМ"]
[null,null,"Аккредитивы","Базовые значения","Условия доступа к аккредитиву \n(Подсказка)"]
[null,null,"0 аккредитив (деньги пойдут на оплату земельного участка)",{"$f":"D20-#REF!","v":{"$error":"#REF!"}},{"$f":"IF(D38=\"\",\"\",'Матрица по аккред._Инфо'!F3)","v":{"$error":"#REF!"}}]
[null,null,"1 аккредитив (деньги пойдут на строительство фундамента)",{"$f":"IF(D9=\"GoodWood\",(IF(H8*'Матрица по аккред._Инфо'!C12-#REF!-D31<0,0,H8*'Матрица по аккред._Инфо'!C12-#REF!-D31)),IF((IF($D$8=\"Стандарт\",($H$8*'Матрица по аккред._Инфо'!C4),IF($D$8=\"Ключевой\",($H$8*'Матрица по аккред._Инфо'!D4),IF($D$8=\"Эксклюзив\",($H$8*'Матрица по аккред._Инфо'!E4),0)))-#REF!-D31)<0,0,(IF($D$8=\"Стандарт\",($H$8*'Матрица по аккред._Инфо'!C4),IF($D$8=\"Ключевой\",($H$8*'Матрица по аккред._Инфо'!D4),IF($D$8=\"Эксклюзив\",($H$8*'Матрица по аккред._Инфо'!E4),0)))-#REF!-D31)))","v":{"$error":"#VALUE!"}},{"$f":"IF(D39=\"\",\"\",'Матрица по аккред._Инфо'!F4)","v":{"$error":"#VALUE!"}},{"$nulls":15},"Программа","Семейная ипотека"]
[null,null,"2 аккредитив (деньги пойдут на строительство стенового комплекта)",{"$f":"IF(D9=\"GoodWood\",(IF(H8*'Матрица по аккред._Инфо'!C12-#REF!-D31<0,(H8*'Матрица по аккред._Инфо'!C13+H8*'Матрица по аккред._Инфо'!C12-#REF!-D31),H8*'Матрица по аккред._Инфо'!C13)),IF(((IF($D$8=\"Стандарт\",($H$8*'Матрица по аккред._Инфо'!C4),IF($D$8=\"Ключевой\",($H$8*'Матрица по аккред._Инфо'!D4),IF($D$8=\"Эксклюзив\",($H$8*'Матрица по аккред._Инфо'!E4),0)))-#REF!-D31)<0),IF($D$8=\"Стандарт\",($H$8*'Матрица по аккред._Инфо'!C5),IF($D$8=\"Ключевой\",($H$8*'Матрица по аккред._Инфо'!D5),IF($D$8=\"Эксклюзив\",($H$8*'Матрица по аккред._Инфо'!E5),0)))+(IF($D$8=\"Стандарт\",($H$8*'Матрица по аккред._Инфо'!C4),IF($D$8=\"Ключевой\",($H$8*'Матрица по аккред._Инфо'!D4),IF($D$8=\"Эксклюзив\",($H$8*'Матрица по аккред._Инфо'!E4),0)))-#REF!-D31),IF($D$8=\"Стандарт\",($H$8*'Матрица по аккред._Инфо'!C5),IF($D$8=\"Ключевой\",($H$8*'Матрица по аккред._Инфо'!D5),IF($D$8=\"Эксклюзив\",($H$8*'Матрица по аккред._Инфо'!E5),0)))))","v":{"$error":"#VALUE!"}},{"$f":"IF(D40=\"\",\"\",'Матрица по аккред._Инфо'!F5)","v":{"$error":"#VALUE!"}},{"$nulls":16},"Семейная ипотека (для ДФО)"]
[null,null,"3 аккредитив (деньги пойдут на завершение строительства)",{"$f":"IF(D9=\"GoodWood\",(H8*'Матрица по аккред._Инфо'!C14),IF($D$8=\"Стандарт\",($H$8*'Матрица по аккред._Инфо'!C7),IF($D$8=\"Ключевой\",($H$8*'Матрица по аккред._Инфо'!D6),IF($D$8=\"Эксклюзив\",($H$8*'Матрица по аккред._Инфо'!E7),0))))","v":{"$error":"#VALUE!"}},{"$f":"IF(D41=\"\",\"\",IF(D9=\"GoodWood\",'Матрица по аккред._Инфо'!F14,'Матрица по аккред._Инфо'!F7))","v":{"$error":"#VALUE!"}},{"$nulls":16},"IT-Ипотека"]
[null,null,"Проверка_общая стоимость строительства \n(с учетом внесенного ПВ и МСК)",{"$f":"SUM(D39:D41)+#REF!+D31","v":{"$error":"#VALUE!"}},{"$nulls":17},"Собственная программа"]
[{"$nulls":20},"Регион"]
[{"$nulls":21},"МиМО/СПбиЛО"]
[{"$nulls":21},"Краснодарский край"]
[{"$nulls":21},"иные регионы с численностью СВЫШЕ 1 млн чел."]
[{"$nulls":21},"иные регионы с численностью ДО 1 млн чел."]

{"sheet":"Настройки калькулятора","index":1,"n_rows":41,"n_cols":2,"rows_kept":41}
[]
[null,"Для корректной работы Калькулятора необходимо:"]
[null,"Зайти в меню «Файл»"]
{"$rows_empty":8}
[null,"Выбрать «Параметры»"]
{"$rows_empty":15}
[null,"Выбрать «Формулы»"]
{"$rows_empty":12}
[null,"Проверить что стоит галочка в параметре «Включить интерактивные вычисления»"]

{"sheet":"График на 1-2 года","index":2,"n_rows":368,"n_cols":6,"rows_kept":368,"hidden":true}
[]
[null,"срок кредитования",{"$f":"#REF!","v":{"$error":"#REF!"}}]
[null,null,{"$f":"#REF!","v":{"$error":"#REF!"}}]
[null,null,{"$f":"#REF!","v":{"$error":"#REF!"}}]
[]
[null,"Мес","Платеж","%","ОД","ОСЗ"]
[null,1,{"$f":"PMT($C$4/12,$C$2,$C$3)","v":{"$error":"#REF!"}},{"$f":"-C3*C4/12","v":{"$error":"#REF!"}},{"$f":"C7-D7","v":{"$error":"#REF!"}},{"$f":"C3+E7","v":{"$error":"#REF!"}}]
[null,2,{"$f":"PMT($C$4/12,$C$2,$C$3)","v":{"$error":"#REF!"}},{"$f":"-$F$7*$C$4/12","v":{"$error":"#REF!"}},{"$f":"C8-D8","v":{"$error":"#REF!"}},{"$f":"F7+E8","v":{"$error":"#REF!"}}]
[null,3,{"$f":"PMT($C$4/12,$C$2,$C$3)","v":{"$error":"#REF!"}},{"$f":"-$F$7*$C$4/12","v":{"$error":"#REF!"}},{"$f":"C9-D9","v":{"$error":"#REF!"}},{"$f":"F8+E9","v":{"$error":"#REF!"}}]
[null,4,{"$error":"#REF!"},{"$error":"#REF!"},{"$error":"#REF!"},{"$error":"#REF!"}]
[null,5,{"$error":"#REF!"},{"$error":"#REF!"},{"$error":"#REF!"},{"$error":"#REF!"}]
[null,6,{"$error":"#REF!"},{"$error":"#REF!"},{"$error":"#REF!"},{"$error":"#REF!"}]
[null,7,{"$error":"#REF!"},{"$error":"#REF!"},{"$error":"#REF!"},{"$error":"#REF!"}]
[null,8,{"$error":"#REF!"},{"$error":"#REF!"},{"$error":"#REF!"},{"$error":"#REF!"}]
[null,9,{"$error":"#REF!"},{"$error":"#REF!"},{"$error":"#REF!"},{"$error":"#REF!"}]
[null,10,{"$error":"#REF!"},{"$error":"#REF!"},{"$error":"#REF!"},{"$error":"#REF!"}]
[null,11,{"$error":"#REF!"},{"$error":"#REF!"},{"$error":"#REF!"},{"$error":"#REF!"}]
[null,12,{"$error":"#REF!"},{"$error":"#REF!"},{"$error":"#REF!"},{"$error":"#REF!"}]
[null,13,{"$error":"#REF!"},{"$error":"#REF!"},{"$error":"#REF!"},{"$error":"#REF!"}]
[null,14,{"$error":"#REF!"},{"$error":"#REF!"},{"$error":"#REF!"},{"$error":"#REF!"}]
[null,15,{"$error":"#REF!"},{"$error":"#REF!"},{"$error":"#REF!"},{"$error":"#REF!"}]
[null,16,{"$error":"#REF!"},{"$error":"#REF!"},{"$error":"#REF!"},{"$error":"#REF!"}]
[null,17,{"$error":"#REF!"},{"$error":"#REF!"},{"$error":"#REF!"},{"$error":"#REF!"}]
[null,18,{"$error":"#REF!"},{"$error":"#REF!"},{"$error":"#REF!"},{"$error":"#REF!"}]
[null,19,{"$error":"#REF!"},{"$error":"#REF!"},{"$error":"#REF!"},{"$error":"#REF!"}]
[null,20,{"$error":"#REF!"},{"$error":"#REF!"},{"$error":"#REF!"},{"$error":"#REF!"}]
[null,21,{"$error":"#REF!"},{"$error":"#REF!"},{"$error":"#REF!"},{"$error":"#REF!"}]
[null,22,{"$error":"#REF!"},{"$error":"#REF!"},{"$error":"#REF!"},{"$error":"#REF!"}]
[null,23,{"$error":"#REF!"},{"$error":"#REF!"},{"$error":"#REF!"},{"$error":"#REF!"}]
[null,24,{"$error":"#REF!"},{"$error":"#REF!"},{"$error":"#REF!"},{"$error":"#REF!"}]
[null,25]
[null,26]
[null,27]
[null,28]
[null,29]
[null,30]
[null,31]
[null,32]
[null,33]
[null,34]
[null,35]
[null,36]
[null,37]
[null,38]
[null,39]
[null,40]
[null,41]
[null,42]
[null,43]
[null,44]
[null,45]
[null,46]
[null,47]
[null,48]
[null,49]
[null,50]
[null,51]
[null,52]
[null,53]
[null,54]
[null,55]
[null,56]
[null,57]
[null,58]
[null,59]
[null,60]
[null,61]
[null,62]
[null,63]
[null,64]
[null,65]
[null,66]
[null,67]
[null,68]
[null,69]
[null,70]
[null,71]
[null,72]
[null,73]
[null,74]
[null,75]
[null,76]
[null,77]
[null,78]
[null,79]
[null,80]
[null,81]
[null,82]
[null,83]
[null,84]
[null,85]
[null,86]
[null,87]
[null,88]
[null,89]
[null,90]
[null,91]
[null,92]
[null,93]
[null,94]
[null,95]
[null,96]
[null,97]
[null,98]
[null,99]
[null,100]
[null,101]
[null,102]
[null,103]
[null,104]
[null,105]
[null,106]
[null,107]
[null,108]
[null,109]
[null,110]
[null,111]
[null,112]
[null,113]
[null,114]
[null,115]
[null,116]
[null,117]
[null,118]
[null,119]
[null,120]
[null,121]
[null,122]
[null,123]
[null,124]
[null,125]
[null,126]
[null,127]
[null,128]
[null,129]
[null,130]
[null,131]
[null,132]
[null,133]
[null,134]
[null,135]
[null,136]
[null,137]
[null,138]
[null,139]
[null,140]
[null,141]
[null,142]
[null,143]
[null,144]
[null,145]
[null,146]
[null,147]
[null,148]
[null,149]
[null,150]
[null,151]
[null,152]
[null,153]
[null,154]
[null,155]
[null,156]
[null,157]
[null,158]
[null,159]
[null,160]
[null,161]
[null,162]
[null,163]
[null,164]
[null,165]
[null,166]
[null,167]
[null,168]
[null,169]
[null,170]
[null,171]
[null,172]
[null,173]
[null,174]
[null,175]
[null,176]
[null,177]
[null,178]
[null,179]
[null,180]
[null,181]
[null,182]
[null,183]
[null,184]
[null,185]
[null,186]
[null,187]
[null,188]
[null,189]
[null,190]
[null,191]
[null,192]
[null,193]
[null,194]
[null,195]
[null,196]
[null,197]
[null,198]
[null,199]
[null,200]
[null,201]
[null,202]
[null,203]
[null,204]
[null,205]
[null,206]
[null,207]
[null,208]
[null,209]
[null,210]
[null,211]
[null,212]
[null,213]
[null,214]
[null,215]
[null,216]
[null,217]
[null,218]
[null,219]
[null,220]
[null,221]
[null,222]
[null,223]
[null,224]
[null,225]
[null,226]
[null,227]
[null,228]
[null,229]
[null,230]
[null,231]
[null,232]
[null,233]
[null,234]
[null,235]
[null,236]
[null,237]
[null,238]
[null,239]
[null,240]
[null,241]
[null,242]
[null,243]
[null,244]
[null,245]
[null,246]
[null,247]
[null,248]
[null,249]
[null,250]
[null,251]
[null,252]
[null,253]
[null,254]
[null,255]
[null,256]
[null,257]
[null,258]
[null,259]
[null,260]
[null,261]
[null,262]
[null,263]
[null,264]
[null,265]
[null,266]
[null,267]
[null,268]
[null,269]
[null,270]
[null,271]
[null,272]
[null,273]
[null,274]
[null,275]
[null,276]
[null,277]
[null,278]
[null,279]
[null,280]
[null,281]
[null,282]
[null,283]
[null,284]
[null,285]
[null,286]
[null,287]
[null,288]
[null,289]
[null,290]
[null,291]
[null,292]
[null,293]
[null,294]
[null,295]
[null,296]
[null,297]
[null,298]
[null,299]
[null,300]
[null,301]
[null,302]
[null,303]
[null,304]
[null,305]
[null,306]
[null,307]
[null,308]
[null,309]
[null,310]
[null,311]
[null,312]
[null,313]
[null,314]
[null,315]
[null,316]
[null,317]
[null,318]
[null,319]
[null,320]
[null,321]
[null,322]
[null,323]
[null,324]
[null,325]
[null,326]
[null,327]
[null,328]
[null,329]
[null,330]
[null,331]
[null,332]
[null,333]
[null,334]
[null,335]
[null,336]
[null,337]
[null,338]
[null,339]
[null,340]
[null,341]
[null,342]
[null,343]
[null,344]
[null,345]
[null,346]
[null,347]
[null,348]
[null,349]
[null,350]
[null,351]
[null,352]
[null,353]
[null,354]
[null,355]
[null,356]
[null,357]
[null,358]
[null,359]
[null,360]
[null,361]
[null,362]

{"sheet":"Покупка+стройка (драфт)","index":3,"n_rows":45,"n_cols":20,"rows_kept":45,"hidden":true,"merged":[[20,5,20,6]]}
[null,null,"ИЗМЕНЯЕМЫЕ ЯЧЕЙКИ"]
[]
[]
[null,null,"КЛЮЧЕВЫЕ ПАРАМЕТРЫ КРЕДИТОВАНИЯ",null,null,"ОБЗОР РАСЧЕТНЫХ ПАРАМЕТРОВ"]
[{"$nulls":18},"Да"]
[null,null,"Личное страхование","Да",null,null,"Стандартные условия","Выгодные условия с субсидированием",{"$nulls":10},"Нет"]
[null,null,"Регион приобретения недвижимости","Краснодарский край",null,"Стоимость приобретаемого земельного участка",{"$f":"D20","v":{"v":6000000,"d":"6,000,000.00 "}},{"$f":"D20","v":{"v":6000000,"d":"6,000,000.00 "}}]
[null,null,"Цель кредита","Строительство дома на своем участке",null,"Стоимость по договору подряда (с учетом удорожания)",{"$f":"D21","v":{"v":8000000,"d":"8,000,000.00 "}},{"$f":"D21+D16*D33","v":{"v":10192607.436956078,"d":"10,192,607.44 "}}]
[null,null,"Категория подрядчика","Ключевой",null,"Общая стоимость для расчета кредита",{"$f":"G7+G8","v":{"v":14000000,"d":"14,000,000.00 "}},{"$f":"H7+H8","v":{"v":16192607.436956078,"d":"16,192,607.44 "}}]
[null,null,"Особенности расчетов по сделке","Обычная сделка",null,"Максимальная сумма кредита",{"$f":"G9*$K$10","v":{"v":11186000,"d":"11,186,000.00 "}},{"$f":"H9*$K$10","v":{"v":12937893.342127906,"d":"12,937,893.34 "}},null,null,{"v":0.799,"d":"79.90%"},{"$nulls":7},"Цели кредита","Подрядчики"]
[{"$nulls":5},"Минимальный размер ПВ",{"$f":"G9*(100%-$K$10)","v":{"v":2813999.9999999995,"d":"2,814,000.00 "}},{"$f":"H9*(100%-$K$10)","v":{"v":3254714.0948281707,"d":"3,254,714.09 "}},{"$nulls":10},"Строительство дома на своем участке","Стандарт"]
[null,null,"Процентная ставка (до субсидирования)",{"$f":"'Матрица ставок_Инфо'!H4","v":{"v":0.275,"d":"27.50%"}},null,"Фактический размер ПВ",{"$f":"G11","v":{"v":2813999.9999999995,"d":"2,814,000.00 "}},{"$f":"H11","v":{"v":3254714.0948281707,"d":"3,254,714.09 "}},{"$nulls":10},"Покупка земли и строительство дома","Ключевой"]
[null,null,"Дисконт к ставке (на весь срок кредитования)",{"v":0.095,"d":"9.50%"},null,"Сумма кредита",{"$f":"G9-G12","v":{"v":11186000,"d":"11,186,000.00 "}},{"$f":"H9-H12","v":{"v":12937893.342127908,"d":"12,937,893.34 "}},null,null,"СИ","СИ для ДФО","ГП","IT","Комбо-транш","Базовая"]
[null,null,"Итоговая процентная ставка ",{"$f":"D12-D13","v":{"v":0.18000000000000002,"d":"18.00%"}},null,"Ставка по кредиту ",{"$f":"D12","v":{"v":0.275,"d":"27.50%"}},{"$f":"G14-D13","v":{"v":0.18000000000000002,"d":"18.00%"}},null,"Клиент \"улица\" или зп-клиент (НЕ А-Клуб/Сотрудники) \nБЕЗ личного страхования",{"$f":"'Матрица ставок_Инфо'!C17","v":{"v":0.06,"d":"6.0%"}},{"$f":"'Матрица ставок_Инфо'!D17","v":{"v":0.05,"d":"5.0%"}},{"$f":"'Матрица ставок_Инфо'!E17","v":{"v":0.09,"d":"9.0%"}},{"$f":"'Матрица ставок_Инфо'!F17","v":{"v":0.06,"d":"6.0%"}},{"$f":"'Матрица ставок_Инфо'!G17","v":{"v":0.24000000000000002,"d":"24.0%"}},{"$f":"'Матрица ставок_Инфо'!H17","v":{"v":0.28500000000000003,"d":"28.5%"}},{"$f":"'Матрица ставок_Инфо'!H21","v":{"v":0.28500000000000003,"d":"28.5%"}}]
[null,null,"Размер КВ,%",{"$f":"IF(D13=12.5%,L20,IF(D13=11.5%,L21,IF(D13=10.5%,L22,IF(D13=9.5%,L23,IF(D13=8.5%,L24,IF(D13=7.5%,L25,IF(D13=6.5%,L26,\"\")))))))","v":{"v":0.21926074369560777,"d":"21.93%"}},null,"Платеж по кредиту",{"$f":"PMT(G14/12,D19,G13)","v":{"v":-256416.10383894335,"d":"-256,416.10 ₽"}},{"$f":"PMT(H14/12,D19,H13)","v":{"v":-194958.0803736848,"d":"-194,958.08 ₽"}},null,"Клиент \"улица\" или зп-клиент (НЕ А-Клуб/Сотрудники) \nС договором личного страхования",{"$f":"'Матрица ставок_Инфо'!C18","v":{"v":0.06,"d":"6.0%"}},{"$f":"'Матрица ставок_Инфо'!D18","v":{"v":0.05,"d":"5.0%"}},{"$f":"'Матрица ставок_Инфо'!E18","v":{"v":0.08,"d":"8.0%"}},{"$f":"'Матрица ставок_Инфо'!F18","v":{"v":0.06,"d":"6.0%"}},{"$f":"'Матрица ставок_Инфо'!G18","v":{"v":0.23,"d":"23.0%"}},{"$f":"'Матрица ставок_Инфо'!H18","v":{"v":0.275,"d":"27.5%"}},{"$f":"'Матрица ставок_Инфо'!H22","v":{"v":0.275,"d":"27.5%"}}]
[null,null,"Размер КВ,руб.",{"$f":"D15*D27","v":{"v":2192607.436956078,"d":"2,192,607.44 "}},null,"Процентная переплата",{"$f":"G15*D19-G13","v":{"v":-104008629.5896975,"d":"-104,008,629.59 "}},{"$f":"H15*D19-H13","v":{"v":-83512718.4374018,"d":"-83,512,718.44 "}},null,"Клиент А-Клуб/Сотрудники\nБЕЗ личного страхования",{"$f":"'Матрица ставок_Инфо'!C19","v":{"v":0.06,"d":"6.0%"}},{"$f":"'Матрица ставок_Инфо'!D19","v":{"v":0.05,"d":"5.0%"}},{"$f":"'Матрица ставок_Инфо'!E19","v":{"v":0.09,"d":"9.0%"}},{"$f":"'Матрица ставок_Инфо'!F19","v":{"v":0.06,"d":"6.0%"}},{"$f":"'Матрица ставок_Инфо'!G19","v":{"v":0.24000000000000002,"d":"24.0%"}},{"$f":"'Матрица ставок_Инфо'!H19","v":{"v":0.28500000000000003,"d":"28.5%"}},{"$f":"'Матрица ставок_Инфо'!H23","v":{"v":0.28500000000000003,"d":"28.5%"}}]
[{"$nulls":9},"Клиент А-Клуб/Сотрудники\nС договором личного страхования",{"$f":"'Матрица ставок_Инфо'!C20","v":{"v":0.06,"d":"6.0%"}},{"$f":"'Матрица ставок_Инфо'!D20","v":{"v":0.05,"d":"5.0%"}},{"$f":"'Матрица ставок_Инфо'!E20","v":{"v":0.08,"d":"8.0%"}},{"$f":"'Матрица ставок_Инфо'!F20","v":{"v":0.06,"d":"6.0%"}},{"$f":"'Матрица ставок_Инфо'!G20","v":{"v":0.23,"d":"23.0%"}},{"$f":"'Матрица ставок_Инфо'!H20","v":{"v":0.275,"d":"27.5%"}},{"$f":"'Матрица ставок_Инфо'!H24","v":{"v":0.275,"d":"27.5%"}},null,1]
[]
[null,null,"Срок кредитования",{"v":362,"d":"362.00 "},{"$f":"IF(MOD(D19-2,12)>0,\"Срок кредитования должен быть кратен 12 мес + 2 мес.\",\"\")","v":""},{"$nulls":5},"Размеры дисконтов","Матрица КВ","Доля КВ"]
[null,null,"Стоимость приобретаемого земельного участка",{"v":6000000,"d":"6,000,000.00 "},{"$nulls":6},{"v":0.125,"d":"12.50%"},{"$f":"'Матрица КВ'!#REF!","v":{"$error":"#REF!"}},{"v":1,"d":"100%"},{"$nulls":5},"Категория клиента","Улица или зарплатник"]
[null,null,"Стоимость строительства",{"v":8000000,"d":"8,000,000.00 "},null,"Выгода по ежемесячному платежу",null,{"$f":"H15-G15","v":{"v":61458.023465258564,"d":"61,458.02 "}},null,null,{"v":0.115,"d":"11.50%"},{"$f":"'Матрица КВ'!E9","v":{"v":0,"d":"0.00%"}},{"v":0.5,"d":"50%"},{"$nulls":6},"Сотрудник/А-Клуб"]
[null,null,"Общая стоимость для расчета кредита",{"$f":"D20+D21","v":{"v":14000000,"d":"14,000,000.00 "}},null,"Выгода по процентной переплате (с учетом увеличения стоимости подряда)",null,{"$f":"H16-G16","v":{"v":20495911.152295694,"d":"20,495,911.15 "}},null,null,{"v":0.105,"d":"10.50%"},{"$f":"'Матрица КВ'!E8","v":{"v":0,"d":"0.00%"}},{"v":0.25,"d":"25%"}]
[null,null,"Размер собственных средств (ПВ)_без учета МСК",{"v":4000000,"d":"4,000,000.00 "},{"$nulls":6},{"v":0.095,"d":"9.50%"},{"$f":"'Матрица КВ'!E7","v":{"v":0.21926074369560777,"d":"21.93%"}},{"v":0,"d":"0%"},{"$nulls":6},"Да"]
[null,null,"Часть ПВ, которая уже внесена на земельный участок",{"$nulls":7},{"v":0.085,"d":"8.50%"},{"$f":"'Матрица КВ'!E6","v":{"v":0.19627222752354678,"d":"19.63%"}},{"$nulls":7},"Нет"]
[null,null,"Часть ПВ, которая уже внесена на строительство",0,null,{"$f":"IF(D25>D23,\"ОШИБКА!Размер внесенного ПВ меньше заявленного\",\"\")","v":""},{"$nulls":4},{"v":0.075,"d":"7.50%"},{"$f":"'Матрица КВ'!E5","v":{"v":0.1734126713602916,"d":"17.34%"}}]
[null,null,"Размер МСК в счет ПВ",0,{"$nulls":6},{"v":0.065,"d":"6.50%"},{"$f":"'Матрица КВ'!E4","v":{"v":0.15063504522020632,"d":"15.06%"}}]
[null,null,"Размер кредитных средств",{"$f":"D22-D23-D26","v":{"v":10000000,"d":"10,000,000.00 "}},null,{"$f":"IF(AND(#REF!=\"Госпрограмма 2020\",D27>6000000),\"ВНИМАНИЕ, сумма кредита не может быть больше 6 млн руб.\",IF(AND(OR(#REF!=\"Семейная ипотека\",#REF!=\"Семейная ипотека (для ДФО)\"),D7=\"МиМО/СПбиЛО\",D27>30000000),\"ВНИМАНИЕ, сумма кредита (с учетом КОМБО-Ипотеки) не может быть больше 30 млн руб.\",IF(AND(OR(#REF!=\"Семейная ипотека\",#REF!=\"Семейная ипотека (для ДФО)\"),OR(D7=\"иные регионы с численностью СВЫШЕ 1 млн чел.\",D7=\"иные регионы с численностью ДО 1 млн чел.\",D7=\"Краснодарский край\"),D27>15000000),\"ВНИМАНИЕ, сумма кредита (с учетом КОМБО-Ипотеки) не может быть больше 15 млн руб.\",IF(AND(#REF!=\"IT-Ипотека\",OR(D7=\"МиМО/СПбиЛО\",D7=\"иные регионы с численностью СВЫШЕ 1 млн чел.\",D7=\"Краснодарский край\"),D27>30000000),\"ВНИМАНИЕ, сумма кредита (с учетом КОМБО-Ипотеки) не может быть больше 30 млн руб.\",IF(AND(#REF!=\"Собственная программа\",OR(D7=\"МиМО/СПбиЛО\",D7=\"Краснодарский край\"),D27>50000000),\"ВНИМАНИЕ, сумма кредита (с учетом КОМБО-Ипотеки) не может быть больше 50 млн руб.\",IF(AND(#REF!=\"Собственная программа\",OR(D7=\"иные регионы с численностью СВЫШЕ 1 млн чел.\",D7=\"иные регионы с численностью ДО 1 млн чел.\"),D27>30000000),\"ВНИМАНИЕ, сумма кредита (с учетом КОМБО-Ипотеки) не может быть больше 30 млн руб.\",IF(AND(#REF!=\"IT-Ипотека\",D7=\"иные регионы с численностью ДО 1 млн чел.\",D27>15000000),\"ВНИМАНИЕ, сумма кредита (с учетом КОМБО-Ипотеки) не может быть больше 15 млн руб.\",\"\")))))))","v":{"$error":"#REF!"}}]
[null,null,"К/З",{"$f":"D27/D22","v":{"v":0.7142857142857143,"d":"71.43%"}}]
[]
[]
[]
[{"$nulls":5},"Пересмотреть формулу, подвязать к новой сумму кредита"]
[null,null,"Доля КВ в счет увеличения стоимости",{"v":1,"d":"100.00%"},{"$nulls":14},"Специфика расчетов","Обычная сделка"]
[{"$nulls":19},"GoodWood"]
[]
[]
[{"$nulls":18},"Программа","Семейная ипотека"]
[null,null,"РАСПРЕДЕЛЕНИЕ СРЕДСТВ ПО АККРЕДИТИВАМ",{"$nulls":16},"Семейная ипотека (для ДФО)"]
[null,null,"Аккредитивы","Базовые значения","Условия доступа к аккредитиву \n(Подсказка)",{"$nulls":14},"IT-Ипотека"]
[null,null,"1 аккредитив (деньги пойдут на оплату зем. участка)",{"$f":"IF(Цель_кредита=\"покупка земли и строительство дома\",D20-D24,0)","v":0},{"$f":"IF(D40=\"\",\"\",'Матрица по аккред._Инфо'!F3)","v":"Чтобы продавец зем.участка получил деньги за земельный участок, нужно предоставить документы о переходе права на зем. участок и ипотеки в пользу Банка"},{"$nulls":14},"Собственная программа"]
[null,null,"2 аккредитив (деньги пойдут на строительство фундамента)",{"$f":"IF(D10=\"GoodWood\",(IF(D21*'Матрица по аккред._Инфо'!C12-D25-D26<0,0,D21*'Матрица по аккред._Инфо'!C12-D25-D26)),IF((IF($D$9=\"Стандарт\",($D$21*'Матрица по аккред._Инфо'!C4),IF($D$9=\"Ключевой\",($D$21*'Матрица по аккред._Инфо'!D4),IF($D$9=\"Эксклюзив\",($D$21*'Матрица по аккред._Инфо'!E4),0)))-D25-D26)<0,0,(IF($D$9=\"Стандарт\",($D$21*'Матрица по аккред._Инфо'!C4),IF($D$9=\"Ключевой\",($D$21*'Матрица по аккред._Инфо'!D4),IF($D$9=\"Эксклюзив\",($D$21*'Матрица по аккред._Инфо'!E4),0)))-D25-D26)))","v":{"v":2400000,"d":"2,400,000.00 "}},{"$f":"IF(D41=\"\",\"\",'Матрица по аккред._Инфо'!F4)","v":"Чтобы подрядчик получил деньги за построенный фундамент и частично на дальнейшее строительство клиент должен предоставить документы, подтверждающие готовность фундамента - акт выполненных работ + акт осмотра Моб оценщика (с выездом Моб оценщика)"},{"$nulls":13},"Регион"]
[null,null,"3 аккредитив (деньги пойдут на строительство стенового комплекта)",{"$f":"IF(D10=\"GoodWood\",(IF(D21*'Матрица по аккред._Инфо'!C12-D25-D26<0,(D21*'Матрица по аккред._Инфо'!C13+D21*'Матрица по аккред._Инфо'!C12-D25-D26),D21*'Матрица по аккред._Инфо'!C13)),IF(((IF($D$9=\"Стандарт\",($D$21*'Матрица по аккред._Инфо'!C4),IF($D$9=\"Ключевой\",($D$21*'Матрица по аккред._Инфо'!D4),IF($D$9=\"Эксклюзив\",($D$21*'Матрица по аккред._Инфо'!E4),0)))-D25-D26)<0),IF($D$9=\"Стандарт\",($D$21*'Матрица по аккред._Инфо'!C5),IF($D$9=\"Ключевой\",($D$21*'Матрица по аккред._Инфо'!D5),IF($D$9=\"Эксклюзив\",($D$21*'Матрица по аккред._Инфо'!E5),0)))+(IF($D$9=\"Стандарт\",($D$21*'Матрица по аккред._Инфо'!C4),IF($D$9=\"Ключевой\",($D$21*'Матрица по аккред._Инфо'!D4),IF($D$9=\"Эксклюзив\",($D$21*'Матрица по аккред._Инфо'!E4),0)))-D25-D26),IF($D$9=\"Стандарт\",($D$21*'Матрица по аккред._Инфо'!C5),IF($D$9=\"Ключевой\",($D$21*'Матрица по аккред._Инфо'!D5),IF($D$9=\"Эксклюзив\",($D$21*'Матрица по аккред._Инфо'!E5),0)))))","v":{"v":1200000,"d":"1,200,000.00 "}},{"$f":"IF(D42=\"\",\"\",'Матрица по аккред._Инфо'!F5)","v":"После того, как стеновой комплект будет построен, подрядчик может получить деньги для продолжения строительства жилого дома. Для этого потребуется предоставить в Банк акт выполненных работ по завершению строительства стенового компекта + акт осмотра Моб оценщика (с выездом Моб оценщика)"},{"$nulls":14},"МиМО/СПбиЛО"]
[null,null,"4 аккредитив (деньги пойдут на завершение строительства)",{"$f":"IF(D10=\"GoodWood\",(D21*'Матрица по аккред._Инфо'!C14),IF($D$9=\"Стандарт\",($D$21*'Матрица по аккред._Инфо'!C7),IF($D$9=\"Ключевой\",($D$21*'Матрица по аккред._Инфо'!D6),IF($D$9=\"Эксклюзив\",($D$21*'Матрица по аккред._Инфо'!E7),0))))","v":{"v":2800000,"d":"2,800,000.00 "}},{"$f":"IF(D43=\"\",\"\",IF(D10=\"GoodWood\",'Матрица по аккред._Инфо'!F14,'Матрица по аккред._Инфо'!F7))","v":"После того, как дом будет построен, Подрядчик получает оставшуюся сумму средств. Для этого необходимо предоставить в Банк акт выполненных работ по строительству жилого дома + акт осмотра Моб оценщика (с выездом Моб оценщика)"},{"$nulls":14},"Краснодарский край"]
[null,null,"Проверка_общая стоимость строительства (с учетом внесенного ПВ и МСК)",{"$f":"SUM(D41:D43)+D25+D26","v":{"v":6400000,"d":"6,400,000.00 "}},{"$nulls":15},"иные регионы с численностью СВЫШЕ 1 млн чел."]
[{"$nulls":19},"иные регионы с численностью ДО 1 млн чел."]

{"sheet":"Ввод параметров для расчетов","index":4,"n_rows":45,"n_cols":20,"rows_kept":45,"hidden":true,"merged":[[20,5,20,6]]}
[null,null,"ИЗМЕНЯЕМЫЕ ЯЧЕЙКИ"]
[]
[]
[null,null,"КЛЮЧЕВЫЕ ПАРАМЕТРЫ КРЕДИТОВАНИЯ",null,null,"ОБЗОР РАСЧЕТНЫХ ПАРАМЕТРОВ"]
[{"$nulls":18},"Да"]
[null,null,"Личное страхование","Да",null,null,"Стандартные условия","Выгодные условия с субсидированием",{"$nulls":10},"Нет"]
[null,null,"Регион приобретения недвижимости","Краснодарский край",null,"Стоимость приобретаемого земельного участка",{"$f":"D20","v":{"v":6000000,"d":"6,000,000.00 "}},{"$f":"D20","v":{"v":6000000,"d":"6,000,000.00 "}}]
[null,null,"Цель кредита","Строительство дома на своем участке",null,"Стоимость по договору подряда (с учетом удорожания)",{"$f":"D21","v":{"v":8000000,"d":"8,000,000.00 "}},{"$f":"D21+D16*D33","v":{"v":10192607.436956078,"d":"10,192,607.44 "}}]
[null,null,"Категория подрядчика","Ключевой",null,"Общая стоимость для расчета кредита",{"$f":"G7+G8","v":{"v":14000000,"d":"14,000,000.00 "}},{"$f":"H7+H8","v":{"v":16192607.436956078,"d":"16,192,607.44 "}}]
[null,null,"Особенности расчетов по сделке","Обычная сделка",null,"Максимальная сумма кредита",{"$f":"G9*$K$10","v":{"v":11186000,"d":"11,186,000.00 "}},{"$f":"H9*$K$10","v":{"v":12937893.342127906,"d":"12,937,893.34 "}},null,null,{"v":0.799,"d":"79.90%"},{"$nulls":7},"Цели кредита","Подрядчики"]
[{"$nulls":5},"Минимальный размер ПВ",{"$f":"G9*(100%-$K$10)","v":{"v":2813999.9999999995,"d":"2,814,000.00 "}},{"$f":"H9*(100%-$K$10)","v":{"v":3254714.0948281707,"d":"3,254,714.09 "}},{"$nulls":10},"Строительство дома на своем участке","Стандарт"]
[null,null,"Процентная ставка (до субсидирования)",{"$f":"'Матрица ставок_Инфо'!H4","v":{"v":0.275,"d":"27.50%"}},null,"Фактический размер ПВ",{"$f":"G11","v":{"v":2813999.9999999995,"d":"2,814,000.00 "}},{"$f":"H11","v":{"v":3254714.0948281707,"d":"3,254,714.09 "}},{"$nulls":10},"Покупка земли и строительство дома","Ключевой"]
[null,null,"Дисконт к ставке (на весь срок кредитования)",{"v":0.095,"d":"9.50%"},null,"Сумма кредита",{"$f":"G9-G12","v":{"v":11186000,"d":"11,186,000.00 "}},{"$f":"H9-H12","v":{"v":12937893.342127908,"d":"12,937,893.34 "}},null,null,"СИ","СИ для ДФО","ГП","IT","Комбо-транш","Базовая"]
[null,null,"Итоговая процентная ставка ",{"$f":"D12-D13","v":{"v":0.18000000000000002,"d":"18.00%"}},null,"Ставка по кредиту ",{"$f":"D12","v":{"v":0.275,"d":"27.50%"}},{"$f":"G14-D13","v":{"v":0.18000000000000002,"d":"18.00%"}},null,"Клиент \"улица\" или зп-клиент (НЕ А-Клуб/Сотрудники) \nБЕЗ личного страхования",{"$f":"'Матрица ставок_Инфо'!C17","v":{"v":0.06,"d":"6.0%"}},{"$f":"'Матрица ставок_Инфо'!D17","v":{"v":0.05,"d":"5.0%"}},{"$f":"'Матрица ставок_Инфо'!E17","v":{"v":0.09,"d":"9.0%"}},{"$f":"'Матрица ставок_Инфо'!F17","v":{"v":0.06,"d":"6.0%"}},{"$f":"'Матрица ставок_Инфо'!G17","v":{"v":0.24000000000000002,"d":"24.0%"}},{"$f":"'Матрица ставок_Инфо'!H17","v":{"v":0.28500000000000003,"d":"28.5%"}},{"$f":"'Матрица ставок_Инфо'!H21","v":{"v":0.28500000000000003,"d":"28.5%"}}]
[null,null,"Размер КВ,%",{"$f":"IF(D13=12.5%,L20,IF(D13=11.5%,L21,IF(D13=10.5%,L22,IF(D13=9.5%,L23,IF(D13=8.5%,L24,IF(D13=7.5%,L25,IF(D13=6.5%,L26,\"\")))))))","v":{"v":0.21926074369560777,"d":"21.93%"}},null,"Платеж по кредиту",{"$f":"PMT(G14/12,D19,G13)","v":{"v":-256416.10383894335,"d":"-256,416.10 ₽"}},{"$f":"PMT(H14/12,D19,H13)","v":{"v":-194958.0803736848,"d":"-194,958.08 ₽"}},null,"Клиент \"улица\" или зп-клиент (НЕ А-Клуб/Сотрудники) \nС договором личного страхования",{"$f":"'Матрица ставок_Инфо'!C18","v":{"v":0.06,"d":"6.0%"}},{"$f":"'Матрица ставок_Инфо'!D18","v":{"v":0.05,"d":"5.0%"}},{"$f":"'Матрица ставок_Инфо'!E18","v":{"v":0.08,"d":"8.0%"}},{"$f":"'Матрица ставок_Инфо'!F18","v":{"v":0.06,"d":"6.0%"}},{"$f":"'Матрица ставок_Инфо'!G18","v":{"v":0.23,"d":"23.0%"}},{"$f":"'Матрица ставок_Инфо'!H18","v":{"v":0.275,"d":"27.5%"}},{"$f":"'Матрица ставок_Инфо'!H22","v":{"v":0.275,"d":"27.5%"}}]
[null,null,"Размер КВ,руб.",{"$f":"D15*D27","v":{"v":2192607.436956078,"d":"2,192,607.44 "}},null,"Процентная переплата",{"$f":"G15*D19-G13","v":{"v":-104008629.5896975,"d":"-104,008,629.59 "}},{"$f":"H15*D19-H13","v":{"v":-83512718.4374018,"d":"-83,512,718.44 "}},null,"Клиент А-Клуб/Сотрудники\nБЕЗ личного страхования",{"$f":"'Матрица ставок_Инфо'!C19","v":{"v":0.06,"d":"6.0%"}},{"$f":"'Матрица ставок_Инфо'!D19","v":{"v":0.05,"d":"5.0%"}},{"$f":"'Матрица ставок_Инфо'!E19","v":{"v":0.09,"d":"9.0%"}},{"$f":"'Матрица ставок_Инфо'!F19","v":{"v":0.06,"d":"6.0%"}},{"$f":"'Матрица ставок_Инфо'!G19","v":{"v":0.24000000000000002,"d":"24.0%"}},{"$f":"'Матрица ставок_Инфо'!H19","v":{"v":0.28500000000000003,"d":"28.5%"}},{"$f":"'Матрица ставок_Инфо'!H23","v":{"v":0.28500000000000003,"d":"28.5%"}}]
[{"$nulls":9},"Клиент А-Клуб/Сотрудники\nС договором личного страхования",{"$f":"'Матрица ставок_Инфо'!C20","v":{"v":0.06,"d":"6.0%"}},{"$f":"'Матрица ставок_Инфо'!D20","v":{"v":0.05,"d":"5.0%"}},{"$f":"'Матрица ставок_Инфо'!E20","v":{"v":0.08,"d":"8.0%"}},{"$f":"'Матрица ставок_Инфо'!F20","v":{"v":0.06,"d":"6.0%"}},{"$f":"'Матрица ставок_Инфо'!G20","v":{"v":0.23,"d":"23.0%"}},{"$f":"'Матрица ставок_Инфо'!H20","v":{"v":0.275,"d":"27.5%"}},{"$f":"'Матрица ставок_Инфо'!H24","v":{"v":0.275,"d":"27.5%"}},null,1]
[]
[null,null,"Срок кредитования",{"v":362,"d":"362.00 "},{"$f":"IF(MOD(D19-2,12)>0,\"Срок кредитования должен быть кратен 12 мес + 2 мес.\",\"\")","v":""},{"$nulls":5},"Размеры дисконтов","Матрица КВ","Доля КВ"]
[null,null,"Стоимость приобретаемого земельного участка",{"v":6000000,"d":"6,000,000.00 "},{"$nulls":6},{"v":0.125,"d":"12.50%"},{"$f":"'Матрица КВ'!#REF!","v":{"$error":"#REF!"}},{"v":1,"d":"100%"},{"$nulls":5},"Категория клиента","Улица или зарплатник"]
[null,null,"Стоимость строительства",{"v":8000000,"d":"8,000,000.00 "},null,"Выгода по ежемесячному платежу",null,{"$f":"H15-G15","v":{"v":61458.023465258564,"d":"61,458.02 "}},null,null,{"v":0.115,"d":"11.50%"},{"$f":"'Матрица КВ'!E9","v":{"v":0,"d":"0.00%"}},{"v":0.5,"d":"50%"},{"$nulls":6},"Сотрудник/А-Клуб"]
[null,null,"Общая стоимость для расчета кредита",{"$f":"D20+D21","v":{"v":14000000,"d":"14,000,000.00 "}},null,"Выгода по процентной переплате (с учетом увеличения стоимости подряда)",null,{"$f":"H16-G16","v":{"v":20495911.152295694,"d":"20,495,911.15 "}},null,null,{"v":0.105,"d":"10.50%"},{"$f":"'Матрица КВ'!E8","v":{"v":0,"d":"0.00%"}},{"v":0.25,"d":"25%"}]
[null,null,"Размер собственных средств (ПВ)_без учета МСК",{"v":4000000,"d":"4,000,000.00 "},{"$nulls":6},{"v":0.095,"d":"9.50%"},{"$f":"'Матрица КВ'!E7","v":{"v":0.21926074369560777,"d":"21.93%"}},{"v":0,"d":"0%"},{"$nulls":6},"Да"]
[null,null,"Часть ПВ, которая уже внесена на земельный участок",{"$nulls":7},{"v":0.085,"d":"8.50%"},{"$f":"'Матрица КВ'!E6","v":{"v":0.19627222752354678,"d":"19.63%"}},{"$nulls":7},"Нет"]
[null,null,"Часть ПВ, которая уже внесена на строительство",0,null,{"$f":"IF(D25>D23,\"ОШИБКА!Размер внесенного ПВ меньше заявленного\",\"\")","v":""},{"$nulls":4},{"v":0.075,"d":"7.50%"},{"$f":"'Матрица КВ'!E5","v":{"v":0.1734126713602916,"d":"17.34%"}}]
[null,null,"Размер МСК в счет ПВ",0,{"$nulls":6},{"v":0.065,"d":"6.50%"},{"$f":"'Матрица КВ'!E4","v":{"v":0.15063504522020632,"d":"15.06%"}}]
[null,null,"Размер кредитных средств",{"$f":"D22-D23-D26","v":{"v":10000000,"d":"10,000,000.00 "}},null,{"$f":"IF(AND(#REF!=\"Госпрограмма 2020\",D27>6000000),\"ВНИМАНИЕ, сумма кредита не может быть больше 6 млн руб.\",IF(AND(OR(#REF!=\"Семейная ипотека\",#REF!=\"Семейная ипотека (для ДФО)\"),D7=\"МиМО/СПбиЛО\",D27>30000000),\"ВНИМАНИЕ, сумма кредита (с учетом КОМБО-Ипотеки) не может быть больше 30 млн руб.\",IF(AND(OR(#REF!=\"Семейная ипотека\",#REF!=\"Семейная ипотека (для ДФО)\"),OR(D7=\"иные регионы с численностью СВЫШЕ 1 млн чел.\",D7=\"иные регионы с численностью ДО 1 млн чел.\",D7=\"Краснодарский край\"),D27>15000000),\"ВНИМАНИЕ, сумма кредита (с учетом КОМБО-Ипотеки) не может быть больше 15 млн руб.\",IF(AND(#REF!=\"IT-Ипотека\",OR(D7=\"МиМО/СПбиЛО\",D7=\"иные регионы с численностью СВЫШЕ 1 млн чел.\",D7=\"Краснодарский край\"),D27>30000000),\"ВНИМАНИЕ, сумма кредита (с учетом КОМБО-Ипотеки) не может быть больше 30 млн руб.\",IF(AND(#REF!=\"Собственная программа\",OR(D7=\"МиМО/СПбиЛО\",D7=\"Краснодарский край\"),D27>50000000),\"ВНИМАНИЕ, сумма кредита (с учетом КОМБО-Ипотеки) не может быть больше 50 млн руб.\",IF(AND(#REF!=\"Собственная программа\",OR(D7=\"иные регионы с численностью СВЫШЕ 1 млн чел.\",D7=\"иные регионы с численностью ДО 1 млн чел.\"),D27>30000000),\"ВНИМАНИЕ, сумма кредита (с учетом КОМБО-Ипотеки) не может быть больше 30 млн руб.\",IF(AND(#REF!=\"IT-Ипотека\",D7=\"иные регионы с численностью ДО 1 млн чел.\",D27>15000000),\"ВНИМАНИЕ, сумма кредита (с учетом КОМБО-Ипотеки) не может быть больше 15 млн руб.\",\"\")))))))","v":{"$error":"#REF!"}}]
[null,null,"К/З",{"$f":"D27/D22","v":{"v":0.7142857142857143,"d":"71.43%"}}]
[]
[]
[]
[{"$nulls":5},"Пересмотреть формулу, подвязать к новой сумму кредита"]
[null,null,"Доля КВ в счет увеличения стоимости",{"v":1,"d":"100.00%"},{"$nulls":14},"Специфика расчетов","Обычная сделка"]
[{"$nulls":19},"GoodWood"]
[]
[]
[{"$nulls":18},"Программа","Семейная ипотека"]
[null,null,"РАСПРЕДЕЛЕНИЕ СРЕДСТВ ПО АККРЕДИТИВАМ",{"$nulls":16},"Семейная ипотека (для ДФО)"]
[null,null,"Аккредитивы","Базовые значения","Условия доступа к аккредитиву \n(Подсказка)",{"$nulls":14},"IT-Ипотека"]
[null,null,"1 аккредитив (деньги пойдут на оплату зем. участка)",{"$f":"IF(Цель_кредита=\"покупка земли и строительство дома\",D20-D24,0)","v":0},{"$f":"IF(D40=\"\",\"\",'Матрица по аккред._Инфо'!F3)","v":"Чтобы продавец зем.участка получил деньги за земельный участок, нужно предоставить документы о переходе права на зем. участок и ипотеки в пользу Банка"},{"$nulls":14},"Собственная программа"]
[null,null,"2 аккредитив (деньги пойдут на строительство фундамента)",{"$f":"IF(D10=\"GoodWood\",(IF(D21*'Матрица по аккред._Инфо'!C12-D25-D26<0,0,D21*'Матрица по аккред._Инфо'!C12-D25-D26)),IF((IF($D$9=\"Стандарт\",($D$21*'Матрица по аккред._Инфо'!C4),IF($D$9=\"Ключевой\",($D$21*'Матрица по аккред._Инфо'!D4),IF($D$9=\"Эксклюзив\",($D$21*'Матрица по аккред._Инфо'!E4),0)))-D25-D26)<0,0,(IF($D$9=\"Стандарт\",($D$21*'Матрица по аккред._Инфо'!C4),IF($D$9=\"Ключевой\",($D$21*'Матрица по аккред._Инфо'!D4),IF($D$9=\"Эксклюзив\",($D$21*'Матрица по аккред._Инфо'!E4),0)))-D25-D26)))","v":{"v":2400000,"d":"2,400,000.00 "}},{"$f":"IF(D41=\"\",\"\",'Матрица по аккред._Инфо'!F4)","v":"Чтобы подрядчик получил деньги за построенный фундамент и частично на дальнейшее строительство клиент должен предоставить документы, подтверждающие готовность фундамента - акт выполненных работ + акт осмотра Моб оценщика (с выездом Моб оценщика)"},{"$nulls":13},"Регион"]
[null,null,"3 аккредитив (деньги пойдут на строительство стенового комплекта)",{"$f":"IF(D10=\"GoodWood\",(IF(D21*'Матрица по аккред._Инфо'!C12-D25-D26<0,(D21*'Матрица по аккред._Инфо'!C13+D21*'Матрица по аккред._Инфо'!C12-D25-D26),D21*'Матрица по аккред._Инфо'!C13)),IF(((IF($D$9=\"Стандарт\",($D$21*'Матрица по аккред._Инфо'!C4),IF($D$9=\"Ключевой\",($D$21*'Матрица по аккред._Инфо'!D4),IF($D$9=\"Эксклюзив\",($D$21*'Матрица по аккред._Инфо'!E4),0)))-D25-D26)<0),IF($D$9=\"Стандарт\",($D$21*'Матрица по аккред._Инфо'!C5),IF($D$9=\"Ключевой\",($D$21*'Матрица по аккред._Инфо'!D5),IF($D$9=\"Эксклюзив\",($D$21*'Матрица по аккред._Инфо'!E5),0)))+(IF($D$9=\"Стандарт\",($D$21*'Матрица по аккред._Инфо'!C4),IF($D$9=\"Ключевой\",($D$21*'Матрица по аккред._Инфо'!D4),IF($D$9=\"Эксклюзив\",($D$21*'Матрица по аккред._Инфо'!E4),0)))-D25-D26),IF($D$9=\"Стандарт\",($D$21*'Матрица по аккред._Инфо'!C5),IF($D$9=\"Ключевой\",($D$21*'Матрица по аккред._Инфо'!D5),IF($D$9=\"Эксклюзив\",($D$21*'Матрица по аккред._Инфо'!E5),0)))))","v":{"v":1200000,"d":"1,200,000.00 "}},{"$f":"IF(D42=\"\",\"\",'Матрица по аккред._Инфо'!F5)","v":"После того, как стеновой комплект будет построен, подрядчик может получить деньги для продолжения строительства жилого дома. Для этого потребуется предоставить в Банк акт выполненных работ по завершению строительства стенового компекта + акт осмотра Моб оценщика (с выездом Моб оценщика)"},{"$nulls":14},"МиМО/СПбиЛО"]
[null,null,"4 аккредитив (деньги пойдут на завершение строительства)",{"$f":"IF(D10=\"GoodWood\",(D21*'Матрица по аккред._Инфо'!C14),IF($D$9=\"Стандарт\",($D$21*'Матрица по аккред._Инфо'!C7),IF($D$9=\"Ключевой\",($D$21*'Матрица по аккред._Инфо'!D6),IF($D$9=\"Эксклюзив\",($D$21*'Матрица по аккред._Инфо'!E7),0))))","v":{"v":2800000,"d":"2,800,000.00 "}},{"$f":"IF(D43=\"\",\"\",IF(D10=\"GoodWood\",'Матрица по аккред._Инфо'!F14,'Матрица по аккред._Инфо'!F7))","v":"После того, как дом будет построен, Подрядчик получает оставшуюся сумму средств. Для этого необходимо предоставить в Банк акт выполненных работ по строительству жилого дома + акт осмотра Моб оценщика (с выездом Моб оценщика)"},{"$nulls":14},"Краснодарский край"]
[null,null,"Проверка_общая стоимость строительства (с учетом внесенного ПВ и МСК)",{"$f":"SUM(D41:D43)+D25+D26","v":{"v":6400000,"d":"6,400,000.00 "}},{"$nulls":15},"иные регионы с численностью СВЫШЕ 1 млн чел."]
[{"$nulls":19},"иные регионы с численностью ДО 1 млн чел."]

{"sheet":"Расчеты","index":5,"n_rows":44,"n_cols":22,"rows_kept":44,"merged":[[4,6,4,7],[4,8,4,10],[15,7,15,8],[33,4,33,6],[34,4,34,6],[35,4,35,6],[36,4,36,6],[37,4,37,6],[38,4,38,6],[39,4,39,6]]}
[null,null,"ИЗМЕНЯЕМЫЕ ЯЧЕЙКИ"]
[]
[]
[null,null,"КЛЮЧЕВЫЕ ПАРАМЕТРЫ КРЕДИТОВАНИЯ",null,null,"ОБЗОР ИТОГОВЫХ ПАРАМЕТРОВ",null,null,{"$f":"IF(D18=0%, \"ВНИМАНИЕ!!!! ПРИ ТАКОМ СРОКЕ ДЕЙСТВИЯ ЛЬГОТНОЙ СТАВКИ НУЖНО ВЫБРАТЬ ДРУГОЙ ДИСКОНТ К СТАВКЕ\",\"\")","v":""}]
[{"$nulls":6},"Стандартные условия (без субсидии)",null,"Выгодные условия (с субсидированием ставки)",{"$nulls":11},"Да"]
[null,null,"Срок кредитования, мес.",{"v":362,"d":"362.00 "},null,null,"Подряд","Земля","Подряд","Земля","Подряд + земля",{"$nulls":9},"Нет"]
[null,null,"Стоимость земли, руб.",{"v":1000000,"d":"1,000,000.00 "},null,"Стоимость по договору (с учетом удорожания по подряду)",{"$f":"D8","v":{"v":8000000,"d":"8,000,000.00 "}},{"$f":"D7","v":{"v":1000000,"d":"1,000,000.00 "}},{"$f":"IF(D15=\"без субсидирования\",\"\",D8+H19*D19)","v":{"v":8681661.103187555,"d":"8,681,661.10 "}},{"$f":"IF(D15=\"без субсидирования\",\"\",D7)","v":{"v":1000000,"d":"1,000,000.00 "}},{"$f":"IF(D15=\"без субсидирования\",\"\",IF(OR(D7=\"\",D7=0),\"\",I7+J7))","v":{"v":9681661.103187555,"d":"9,681,661.10 "}}]
[null,null,"Стоимость строительства, руб.",{"v":8000000,"d":"8,000,000.00 "},null,"Максимальная сумма кредита",{"$f":"G7*$M$10","v":{"v":4000000,"d":"4,000,000.00 "}},{"$f":"H7*$M$10","v":{"v":500000,"d":"500,000.00 "}},{"$f":"IF(D15=\"без субсидирования\",\"\",I7*$M$10)","v":{"v":4340830.551593778,"d":"4,340,830.55 "}},{"$f":"IF(D15=\"без субсидирования\",\"\",J7*$M$10)","v":{"v":500000,"d":"500,000.00 "}},{"$f":"IF(D15=\"без субсидирования\",\"\",IF(OR(D7=\"\",D7=0),\"\",I8+J8))","v":{"v":4840830.551593778,"d":"4,840,830.55 "}}]
[null,null,"Личное страхование","Да",null,"Минимальный размер ПВ",{"$f":"G7*(100%-$M$10)","v":{"v":4000000,"d":"4,000,000.00 "}},{"$f":"H7*(100%-$M$10)","v":{"v":500000,"d":"500,000.00 "}},{"$f":"IF(D15=\"без субсидирования\",\"\",I7*(100%-$M$10))","v":{"v":4340830.551593778,"d":"4,340,830.55 "}},{"$f":"IF(D15=\"без субсидирования\",\"\",J7*(100%-$M$10))","v":{"v":500000,"d":"500,000.00 "}},{"$f":"IF(D15=\"без субсидирования\",\"\",IF(OR(D7=\"\",D7=0),\"\",I9+J9))","v":{"v":4840830.551593778,"d":"4,840,830.55 "}}]
[null,null,"Регион приобретения недвижимости","МиМО/СПбиЛО",null,"Фактический размер ПВ",{"v":1608000,"d":"1,608,000.00 "},{"v":402000,"d":"402,000.00 "},{"v":4350000,"d":"4,350,000.00 "},{"v":500000,"d":"500,000.00 "},{"$f":"IF(D15=\"без субсидирования\",\"\",IF(OR(D7=\"\",D7=0),\"\",I10+J10))","v":{"v":4850000,"d":"4,850,000.00 "}},null,{"v":0.5,"d":"50.00%"},{"$nulls":7},"Цели кредита","Подрядчики"]
[null,null,"Категория подрядчика","Стандарт",null,"Итоговая сумма кредита",{"$f":"G7-G10","v":{"v":6392000,"d":"6,392,000.00 "}},{"$f":"IF(OR(D7=\"\",D7=0),\"\",H7-H10)","v":{"v":598000,"d":"598,000.00 "}},{"$f":"IF(D15=\"без субсидирования\",\"\",IF(OR(I10=\"\",I10=0,I10<I9),I7-I9,I7-I10))","v":{"v":4331661.103187555,"d":"4,331,661.10 "}},{"$f":"IF(D15=\"без субсидирования\",\"\",IF(OR(D7=\"\",D7=0),\"\",J7-J10))","v":{"v":500000,"d":"500,000.00 "}},{"$f":"IF(D15=\"без субсидирования\",\"\",IF(OR(D7=\"\",D7=0),\"\",I11+J11))","v":{"v":4831661.103187555,"d":"4,831,661.10 "}},{"$nulls":9},"Строительство дома на своем участке","Стандарт"]
[null,null,"Особенности расчетов по сделке","Обычная сделка",null,"Ставка по кредиту (на льготный период)",{"$f":"IF(D9=\"Нет\",'Матрица ставок_Инфо'!H17,IF(D9=\"Да\",'Матрица ставок_Инфо'!H18,\"\"))","v":{"v":0.275,"d":"27.5%"}},{"$f":"IF(OR(H7=\"\",H7=0),\"\",G12)","v":{"v":0.275,"d":"27.50%"}},{"$f":"IF(D15=\"без субсидирования\",\"\",G12-D15)","v":{"v":0.17000000000000004,"d":"17.00%"}},{"$f":"IF(D15=\"без субсидирования\",\"\",IF(OR(J7=\"\",J7=0),\"\",G12))","v":{"v":0.275,"d":"27.50%"}},{"$f":"IF(D15=\"без субсидирования\",\"\",IF(OR(D7=\"\",D7=0),\"\",IF(OR(J7=\"\",J7=0),I12,(I12*I11+J12*J11)/K11)))","v":{"v":0.1808658283101364,"d":"18.09%"}},{"$nulls":9},"Покупка земли и строительство дома","Ключевой"]
[{"$nulls":5},"Ставка по кредиту (после окончания льготного периода)",{"$f":"IF(D9=\"Нет\",'Матрица ставок_Инфо'!H17,IF(D9=\"Да\",'Матрица ставок_Инфо'!H18,\"\"))","v":{"v":0.275,"d":"27.5%"}},{"$f":"IF(OR(H7=\"\",H7=0),\"\",G13)","v":{"v":0.275,"d":"27.50%"}},{"$f":"IF(D15=\"без субсидирования\",\"\",IF(D16=\"весь срок\",I12,IF(D9=\"Нет\",'Матрица ставок_Инфо'!H17,IF(D9=\"Да\",'Матрица ставок_Инфо'!H18,\"\"))))","v":{"v":0.275,"d":"27.50%"}},{"$f":"IF(D15=\"без субсидирования\",\"\",IF(OR(J7=\"\",J7=0),\"\",G13))","v":{"v":0.275,"d":"27.50%"}},{"$f":"IF(D15=\"без субсидирования\",\"\",IF(OR(D7=\"\",D7=0),\"\",IF(OR(J7=\"\",J7=0),I13,(I13*I11+J13*J11)/K11)))","v":{"v":0.275,"d":"27.50%"}},null,"СИ","СИ для ДФО","ГП","IT","Комбо-транш","Базовая",{"$nulls":3},"Эксклюзив"]
[null,null,"Процентная ставка (до субсидирования), %",{"$f":"IF(D9=\"Нет\",'Матрица ставок_Инфо'!H17,IF(D9=\"Да\",'Матрица ставок_Инфо'!H18,\"\"))","v":{"v":0.275,"d":"27.50%"}},null,"Платеж по кредиту (на льготный период)",{"$f":"PMT(G12/12,D6,-G11)","v":{"v":146523.48790796762,"d":"146,523.49 ₽"}},{"$f":"IF(OR(H7=\"\",H8=0),\"\",PMT(H12/12,D6,-H11))","v":{"v":13707.923305532642,"d":"13,707.92 ₽"}},{"$f":"IF(D15=\"без субсидирования\",\"\",PMT(I12/12,D6,-I11))","v":{"v":61744.531634161416,"d":"61,744.53 ₽"}},{"$f":"IF(D15=\"без субсидирования\",\"\",IF(OR(J7=\"\",J7=0),\"\",PMT(J12/12,D6,-J11)))","v":{"v":11461.474335729634,"d":"11,461.47 ₽"}},{"$f":"IF(D15=\"без субсидирования\",\"\",IF(OR(D7=\"\",D7=0),\"\",IF(OR(J7=\"\",J7=0),I14,PMT(K12/12,D6,-K11))))","v":{"v":73148.86289535342,"d":"73,148.86 ₽"}},"Клиент \"улица\" или зп-клиент (НЕ А-Клуб/Сотрудники) \nБЕЗ личного страхования",{"$f":"'Матрица ставок_Инфо'!C17","v":{"v":0.06,"d":"6.0%"}},{"$f":"'Матрица ставок_Инфо'!D17","v":{"v":0.05,"d":"5.0%"}},{"$f":"'Матрица ставок_Инфо'!E17","v":{"v":0.09,"d":"9.0%"}},{"$f":"'Матрица ставок_Инфо'!F17","v":{"v":0.06,"d":"6.0%"}},{"$f":"'Матрица ставок_Инфо'!G17","v":{"v":0.24000000000000002,"d":"24.0%"}},{"$f":"'Матрица ставок_Инфо'!H17","v":{"v":0.28500000000000003,"d":"28.5%"}},{"$f":"'Матрица ставок_Инфо'!H21","v":{"v":0.28500000000000003,"d":"28.5%"}}]
[null,null,"Дисконт к ставке (на весь срок кредитования), %",{"v":0.105,"d":"10.50%"},null,"Процентная переплата",{"$f":"IF(D16=\"весь срок\",G14*D6-G11,\"\")","v":""},{"$f":"IF(OR(H7=\"\",H7=0),\"\",IF(D16=\"весь срок\",(H14*D6-H11),\"\"))","v":""},{"$f":"IF(D15=\"без субсидирования\",\"\",IF(D16=\"весь срок\",(I14*D6-I11),\"\"))","v":""},{"$f":"IF(D15=\"без субсидирования\",\"\",IF(OR(J7=\"\",J7=0),\"\",IF(D16=\"весь срок\",(J14*D6-J11),\"\")))","v":""},{"$f":"IF(D15=\"без субсидирования\",\"\",IF(OR(K7=\"\",K7=0),\"\",IF(D16=\"весь срок\",(K14*D6-K11),\"\")))","v":""},"Клиент \"улица\" или зп-клиент (НЕ А-Клуб/Сотрудники) \nС договором личного страхования",{"$f":"'Матрица ставок_Инфо'!C18","v":{"v":0.06,"d":"6.0%"}},{"$f":"'Матрица ставок_Инфо'!D18","v":{"v":0.05,"d":"5.0%"}},{"$f":"'Матрица ставок_Инфо'!E18","v":{"v":0.08,"d":"8.0%"}},{"$f":"'Матрица ставок_Инфо'!F18","v":{"v":0.06,"d":"6.0%"}},{"$f":"'Матрица ставок_Инфо'!G18","v":{"v":0.23,"d":"23.0%"}},{"$f":"'Матрица ставок_Инфо'!H18","v":{"v":0.275,"d":"27.5%"}},{"$f":"'Матрица ставок_Инфо'!H22","v":{"v":0.275,"d":"27.5%"}}]
[null,null,"Срок действия льготной ставки","2 года",null,{"$f":"IF(AND(OR(D15=11.5%,D15=10.5%,D15=9.5%,D15=8.5%,D15=7.5%,D15=6.5%),OR(AND(G10<G9,G10>0),AND(H10<H9,H10>0),AND(I10<I9,I10>0),AND(J10<J9,J10>0))),\"Внимание! Необходимо увеличить ПВ (не может быть ниже минимального)\",IF(AND(D15=\"без субсидирования\",OR(AND(G10<G9,G10>0),AND(H10<H9,H10>0),)),\"Внимание! Необходимо увеличить ПВ (не может быть ниже минимального)\",\"\"))","v":"Внимание! Необходимо увеличить ПВ (не может быть ниже минимального)"},null,{"$f":"IF(OR(D7=\"\",D7=0),\"\",IF(OR(H10=\"\",H10=0,J10=\"\",J10=0,),\"Внимание, заполните фактический размер ПВ по земле\",\"\"))","v":""},{"$nulls":3},"Клиент А-Клуб/Сотрудники\nБЕЗ личного страхования",{"$f":"'Матрица ставок_Инфо'!C19","v":{"v":0.06,"d":"6.0%"}},{"$f":"'Матрица ставок_Инфо'!D19","v":{"v":0.05,"d":"5.0%"}},{"$f":"'Матрица ставок_Инфо'!E19","v":{"v":0.09,"d":"9.0%"}},{"$f":"'Матрица ставок_Инфо'!F19","v":{"v":0.06,"d":"6.0%"}},{"$f":"'Матрица ставок_Инфо'!G19","v":{"v":0.24000000000000002,"d":"24.0%"}},{"$f":"'Матрица ставок_Инфо'!H19","v":{"v":0.28500000000000003,"d":"28.5%"}},{"$f":"'Матрица ставок_Инфо'!H23","v":{"v":0.28500000000000003,"d":"28.5%"}}]
[null,null,"Итоговая процентная ставка, %",{"$f":"IF(D15=\"без субсидирования\",\"\",D14-D15)","v":{"v":0.17000000000000004,"d":"17.00%"}},null,"Выгода по ежемесячному платежу",null,{"$f":"IF(D15=\"без субсидирования\",\"\",IF(OR(D7=\"\",D7=0),I14-G14,K14-(G14+H14)))","v":{"v":-87082.54831814683,"d":"-87,082.55 "}},{"$nulls":3},"Клиент А-Клуб/Сотрудники\nС договором личного страхования",{"$f":"'Матрица ставок_Инфо'!C20","v":{"v":0.06,"d":"6.0%"}},{"$f":"'Матрица ставок_Инфо'!D20","v":{"v":0.05,"d":"5.0%"}},{"$f":"'Матрица ставок_Инфо'!E20","v":{"v":0.08,"d":"8.0%"}},{"$f":"'Матрица ставок_Инфо'!F20","v":{"v":0.06,"d":"6.0%"}},{"$f":"'Матрица ставок_Инфо'!G20","v":{"v":0.23,"d":"23.0%"}},{"$f":"'Матрица ставок_Инфо'!H20","v":{"v":0.275,"d":"27.5%"}},{"$f":"'Матрица ставок_Инфо'!H24","v":{"v":0.275,"d":"27.5%"}},null,1]
[null,null,"Размер КВ,%",{"$f":"IF(AND(D15=12.5%,D16=\"весь срок\"),N21,IF(AND(D15=11.5%,D16=\"весь срок\"),N22,IF(AND(D15=10.5%,D16=\"весь срок\"),N23,IF(AND(D15=9.5%,D16=\"весь срок\"),N24,IF(AND(D15=8.5%,D16=\"весь срок\"),N25,IF(AND(D15=7.5%,D16=\"весь срок\"),N26,IF(AND(D15=6.5%,D16=\"весь срок\"),N27,IF(AND(D15=12.5%,D16=\"1 год\"),P21,IF(AND(D15=11.5%,D16=\"1 год\"),P22,IF(AND(D15=10.5%,D16=\"1 год\"),P23,IF(AND(D15=9.5%,D16=\"1 год\"),P24,IF(AND(D15=8.5%,D16=\"1 год\"),P25,IF(AND(D15=7.5%,D16=\"1 год\"),P26,IF(AND(D15=6.5%,D16=\"1 год\"),P27,IF(AND(D15=12.5%,D16=\"2 года\"),Q21,IF(AND(D15=11.5%,D16=\"2 года\"),Q22,IF(AND(D15=10.5%,D16=\"2 года\"),Q23,IF(AND(D15=9.5%,D16=\"2 года\"),Q24,IF(AND(D15=8.5%,D16=\"2 года\"),Q25,IF(AND(D15=7.5%,D16=\"2 года\"),Q26,IF(AND(D15=6.5%,D16=\"2 года\"),Q27,\"\")))))))))))))))))))))","v":{"v":0.15736713629003404,"d":"15.74%"}},null,"Выгода по процентной переплате (с учетом увеличения стоимости подряда)",null,{"$f":"IF(D15=\"без субсидирования\",\"\",IF(OR(D16=\"1 год\",D16=\"2 года\"),\"\",IF(OR(D7=\"\",D7=0),I15-G15,K15-(G15+H15))))","v":""}]
[null,null,"Доля базового КВ в счет увеличения стоимости",{"v":1,"d":"100.00%"},null,"КВ Банку (с учетом удорожения стоимости строительства)",null,{"$f":"IF(D15=\"без субсидирования\",0,I11*D18)","v":{"v":681661.1031875552,"d":"681,661.10 "}},{"$nulls":4},"Размеры дисконтов","Матрица КВ (весь срок)","Доля КВ","КВ на 1 год","КВ на 2 года"]
[]
[null,null,"ЗАПРАШИВАЕМЫЕ ПАРАМЕТРЫ",null,{"$f":"IF(MOD(D6-2,12)>0,\"Срок кредитования должен быть кратен 12 мес + 2 мес.\",\"\")","v":""},{"$nulls":7},{"v":0.125,"d":"12.50%"},{"v":0,"d":"0.00%"},{"v":1,"d":"100%"},{"v":0,"d":"0.00%"},{"v":0,"d":"0.00%"},"весь срок",null,null,"Категория клиента","Улица или зарплатник"]
[{"$nulls":12},{"v":0.115,"d":"11.50%"},{"$f":"'Матрица КВ'!E9","v":{"v":0,"d":"0.00%"}},{"v":0.5,"d":"50%"},{"$f":"'Матрица КВ'!F9","v":{"v":0.10219351271439231,"d":"10.22%"}},{"$f":"'Матрица КВ'!G9","v":{"v":0.17265959416192317,"d":"17.27%"}},"1 год"]
[{"$nulls":12},{"v":0.105,"d":"10.50%"},{"$f":"'Матрица КВ'!E8","v":{"v":0,"d":"0.00%"}},{"v":0.25,"d":"25%"},{"$f":"'Матрица КВ'!F8","v":{"v":0.09319290589342503,"d":"9.32%"}},{"$f":"'Матрица КВ'!G8","v":{"v":0.15736713629003404,"d":"15.74%"}},"2 года"]
[{"$nulls":12},{"v":0.095,"d":"9.50%"},{"$f":"'Матрица КВ'!E7","v":{"v":0.21926074369560777,"d":"21.93%"}},{"v":0,"d":"0%"},{"$f":"'Матрица КВ'!F7","v":{"v":0.08423064056989842,"d":"8.42%"}},{"$f":"'Матрица КВ'!G7","v":{"v":0.14219193139522018,"d":"14.22%"}}]
[null,null,{"$f":"IF(D18=0%, \"ПРИ ТАКОМ СРОКЕ ДЕЙСТВИЯ ЛЬГОТНОЙ СТАВКИ НУЖНО ВЫБРАТЬ ДРУГОЙ ДИСКОНТ К СТАВКЕ\",\"\")","v":""},{"$nulls":9},{"v":0.085,"d":"8.50%"},{"$f":"'Матрица КВ'!E6","v":{"v":0.19627222752354678,"d":"19.63%"}},null,{"$f":"'Матрица КВ'!F6","v":{"v":0.07529321552712508,"d":"7.53%"}},{"$f":"'Матрица КВ'!G6","v":{"v":0.1270928718080717,"d":"12.71%"}},{"$nulls":4},"Сотрудник/А-Клуб"]
[null,null,"ДОП ИНФОРМАЦИЯ ДЛЯ АККРЕДИТИВОВ",{"$nulls":9},{"v":0.075,"d":"7.50%"},{"$f":"'Матрица КВ'!E5","v":{"v":0.1734126713602916,"d":"17.34%"}},null,{"$f":"'Матрица КВ'!F5","v":{"v":0.06637161456556027,"d":"6.64%"}},{"$f":"'Матрица КВ'!G5","v":{"v":0.11204257208572783,"d":"11.20%"}}]
[null,null,"Аванс, из них:",{"$nulls":9},{"v":0.065,"d":"6.50%"},{"$f":"'Матрица КВ'!E4","v":{"v":0.15063504522020632,"d":"15.06%"}},null,{"$f":"'Матрица КВ'!F4","v":{"v":0.057459850673043406,"d":"5.75%"}},{"$f":"'Матрица КВ'!G4","v":{"v":0.09702291912275932,"d":"9.70%"}}]
[null,null,"часть ПВ, которая уже внесена на земельный участок",0,{"$nulls":8},"без субсидирования",{"$nulls":8},"Да"]
[null,null,"часть ПВ, которая будет внесена подрядчика напрямую \n(без аккредитива)",{"$nulls":18},"Нет"]
[null,null,"Размер МСК в счет ПВ",0]
[{"$nulls":20},"Специфика расчетов","Обычная сделка"]
[{"$nulls":21},"GoodWood"]
[null,null,"РАСПРЕДЕЛЕНИЕ СРЕДСТВ ПО АККРЕДИТИВАМ"]
[null,null,"Аккредитивы","Базовые значения","Условия доступа к аккредитиву \n(Подсказка)"]
[null,null,"0 аккредитив (деньги пойдут на оплату земельного участка)",{"$f":"IF(OR(D7=\"\",D7=0),\"\",D7-D28)","v":{"v":1000000,"d":"1,000,000.00 "}},"Чтобы продавец земельного участка получил деньги клиент/продавец должен предоставить документы, подтверждающие регистрацию ипотеки на зем.участок в пользу Банка",{"$nulls":15},"Программа","Семейная ипотека"]
[null,null,"1 аккредитив (деньги пойдут на оплату построенного фундамента и частичную оплату дальнейшего строительства)",{"$f":"IF(AND(D12=\"GoodWood\",OR(D15=11.5%,D15=10.5%,D15=9.5%,D15=8.5%,D15=7.5%,D15=6.5%)),IF(I7*'Матрица по аккред._Инфо'!C12-D29-D30<0,0,I7*'Матрица по аккред._Инфо'!C12-D29-D30),IF(AND(D11=\"Стандарт\",OR(D15=11.5%,D15=10.5%,D15=9.5%,D15=8.5%,D15=7.5%,D15=6.5%)),IF(I7*'Матрица по аккред._Инфо'!C4-D29-D30<0,0,I7*'Матрица по аккред._Инфо'!C4-D29-D30),IF(AND(Расчеты!D11=\"Ключевой\",OR(D15=11.5%,D15=10.5%,D15=9.5%,D15=8.5%,D15=7.5%,D15=6.5%)),IF(I7*'Матрица по аккред._Инфо'!D4-D29-D30<0,0,I7*'Матрица по аккред._Инфо'!D4-D29-D30),IF(AND(Расчеты!D11=\"Эксклюзив\",OR(D15=11.5%,D15=10.5%,D15=9.5%,D15=8.5%,D15=7.5%,D15=6.5%)),IF(I7*'Матрица по аккред._Инфо'!E4-D29-D30<0,0,I7*'Матрица по аккред._Инфо'!E4-D29-D30),IF(AND(Расчеты!D12=\"GoodWood\",D15=\"без субсидирования\"),IF(G7*'Матрица по аккред._Инфо'!C12-D29-D30<0,0,G7*'Матрица по аккред._Инфо'!C12-D29-D30),IF(AND(Расчеты!D11=\"Стандарт\",D15=\"без субсидирования\"),IF(G7*'Матрица по аккред._Инфо'!C4-D29-D30<0,0,G7*'Матрица по аккред._Инфо'!C4-D29-D30),IF(AND(Расчеты!D11=\"Ключевой\",D15=\"без субсидирования\"),IF(G7*'Матрица по аккред._Инфо'!D4-D29-D30<0,0,G7*'Матрица по аккред._Инфо'!D4-D29-D30),IF(AND(Расчеты!D11=\"Эксклюзив\",D15=\"без субсидирования\"),IF(G7*'Матрица по аккред._Инфо'!E4-D29-D30<0,0,G7*'Матрица по аккред._Инфо'!E4-D29-D30),\"\"))))))))","v":{"v":2604498.3309562667,"d":"2,604,498.33 "}},"После того, как фундамент будет построен, подрядчик может получить деньги для продолжения строительства жилого дома. Для этого потребуется предоставить в Банк акт выполненных работ по строительству фундамента + акт осмотра Моб.оценщика (с выездом)",{"$nulls":16},"Семейная ипотека (для ДФО)"]
[null,null,"2 аккредитив (деньги пойдут на оплату стенового комплекта и дальнейшее строительство теплого контура - крыша, окна, двери)",{"$f":"IF(AND(D12=\"GoodWood\",OR(D15=11.5%,D15=10.5%,D15=9.5%,D15=8.5%,D15=7.5%,D15=6.5%)),IF(I7*'Матрица по аккред._Инфо'!C12-D29-D30<0,I7*'Матрица по аккред._Инфо'!C13+I7*'Матрица по аккред._Инфо'!C12-D29-D30,I7*'Матрица по аккред._Инфо'!C13),IF(AND(D11=\"Стандарт\",OR(D15=11.5%,D15=10.5%,D15=9.5%,D15=8.5%,D15=7.5%,D15=6.5%)),IF(I7*'Матрица по аккред._Инфо'!C4-D29-D30<0,I7*'Матрица по аккред._Инфо'!C5+I7*'Матрица по аккред._Инфо'!C4-D29-D30,I7*'Матрица по аккред._Инфо'!C5),IF(AND(Расчеты!D11=\"Ключевой\",OR(D15=11.5%,D15=10.5%,D15=9.5%,D15=8.5%,D15=7.5%,D15=6.5%)),IF(I7*'Матрица по аккред._Инфо'!D4-D29-D30<0,I7*'Матрица по аккред._Инфо'!D5+I7*'Матрица по аккред._Инфо'!D4-D29-D30,I7*'Матрица по аккред._Инфо'!D5),IF(AND(Расчеты!D11=\"Эксклюзив\",OR(D15=11.5%,D15=10.5%,D15=9.5%,D15=8.5%,D15=7.5%,D15=6.5%)),IF(I7*'Матрица по аккред._Инфо'!E4-D29-D30<0,I7*'Матрица по аккред._Инфо'!E5+I7*'Матрица по аккред._Инфо'!E4-D29-D30,I7*'Матрица по аккред._Инфо'!E5),IF(AND(Расчеты!D12=\"GoodWood\",D15=\"без субсидирования\"),IF(G7*'Матрица по аккред._Инфо'!C12-D29-D30<0,G7*'Матрица по аккред._Инфо'!C13+G7*'Матрица по аккред._Инфо'!C12-D29-D30,G7*'Матрица по аккред._Инфо'!C13),IF(AND(Расчеты!D11=\"Стандарт\",D15=\"без субсидирования\"),IF(G7*'Матрица по аккред._Инфо'!C4-D29-D30<0,G7*'Матрица по аккред._Инфо'!C5+G7*'Матрица по аккред._Инфо'!C4-D29-D30,G7*'Матрица по аккред._Инфо'!C5),IF(AND(Расчеты!D11=\"Ключевой\",D15=\"без субсидирования\"),IF(G7*'Матрица по аккред._Инфо'!D4-D29-D30<0,G7*'Матрица по аккред._Инфо'!D5+G7*'Матрица по аккред._Инфо'!D4-D29-D30,G7*'Матрица по аккред._Инфо'!D5),IF(AND(Расчеты!D11=\"Эксклюзив\",D15=\"без субсидирования\"),IF(G7*'Матрица по аккред._Инфо'!E4-D29-D30<0,G7*'Матрица по аккред._Инфо'!E5+G7*'Матрица по аккред._Инфо'!E4-D29-D30,G7*'Матрица по аккред._Инфо'!E5),\"\"))))))))","v":{"v":1302249.1654781334,"d":"1,302,249.17 "}},"После того, как будут построены стены, подрядчик может получить деньги для продолжения строительства жилого дома. Для этого потребуется предоставить в Банк акт выполненных работ по строительству стен + акт осмотра Моб оценщика (с выездом)",{"$nulls":16},"IT-Ипотека"]
[null,null,"3 аккредитив   (деньги пойдут на оплату расходов на теплый контур, а также на коммуникации и отделку)",{"$f":"IF(AND(D12=\"GoodWood\",OR(D15=11.5%,D15=10.5%,D15=9.5%,D15=8.5%,D15=7.5%,D15=6.5%)),I7*'Матрица по аккред._Инфо'!C14,IF(AND(D11=\"Стандарт\",OR(D15=11.5%,D15=10.5%,D15=9.5%,D15=8.5%,D15=7.5%,D15=6.5%)),I7*'Матрица по аккред._Инфо'!C6,IF(AND(Расчеты!D11=\"Ключевой\",OR(D15=11.5%,D15=10.5%,D15=9.5%,D15=8.5%,D15=7.5%,D15=6.5%)),I7*'Матрица по аккред._Инфо'!D6,IF(AND(Расчеты!D11=\"Эксклюзив\",OR(D15=11.5%,D15=10.5%,D15=9.5%,D15=8.5%,D15=7.5%,D15=6.5%)),I7*'Матрица по аккред._Инфо'!E6,IF(AND(Расчеты!D12=\"GoodWood\",D15=\"без субсидирования\"),G7*'Матрица по аккред._Инфо'!C14,IF(AND(Расчеты!D11=\"Стандарт\",D15=\"без субсидирования\"),G7*'Матрица по аккред._Инфо'!C6,IF(AND(Расчеты!D11=\"Ключевой\",D15=\"без субсидирования\"),G7*'Матрица по аккред._Инфо'!D6,IF(AND(Расчеты!D11=\"Эксклюзив\",D15=\"без субсидирования\"),G7*'Матрица по аккред._Инфо'!E6,\"\"))))))))","v":{"v":3038581.386115644,"d":"3,038,581.39 "}},"После того, как будет построен теплый контур стены, подрядчик может получить деньги для продолжения строительства жилого дома. Для этого потребуется предоставить в Банк акт выполненных работ по строительству теплого контура  + акт осмотра Моб оценщика (с выездом)",{"$nulls":16},"Собственная программа"]
[null,null,"4 аккредитив (пост-оплата)",{"$f":"IF(AND(D12=\"GoodWood\",OR(D15=11.5%,D15=10.5%,D15=9.5%,D15=8.5%,D15=7.5%,D15=6.5%)),I7*'Матрица по аккред._Инфо'!C15,IF(AND(D11=\"Стандарт\",OR(D15=11.5%,D15=10.5%,D15=9.5%,D15=8.5%,D15=7.5%,D15=6.5%)),I7*'Матрица по аккред._Инфо'!C7,IF(AND(Расчеты!D11=\"Ключевой\",OR(D15=11.5%,D15=10.5%,D15=9.5%,D15=8.5%,D15=7.5%,D15=6.5%)),I7*'Матрица по аккред._Инфо'!D7,IF(AND(Расчеты!D11=\"Эксклюзив\",OR(D15=11.5%,D15=10.5%,D15=9.5%,D15=8.5%,D15=7.5%,D15=6.5%)),I7*'Матрица по аккред._Инфо'!E7,IF(AND(Расчеты!D12=\"GoodWood\",D15=\"без субсидирования\"),G7*'Матрица по аккред._Инфо'!C15,IF(AND(Расчеты!D11=\"Стандарт\",D15=\"без субсидирования\"),G7*'Матрица по аккред._Инфо'!C7,IF(AND(Расчеты!D11=\"Ключевой\",D15=\"без субсидирования\"),G7*'Матрица по аккред._Инфо'!D7,IF(AND(Расчеты!D11=\"Эксклюзив\",D15=\"без субсидирования\"),G7*'Матрица по аккред._Инфо'!E7,\"\"))))))))","v":{"v":1736332.2206375108,"d":"1,736,332.22 "}},"После того, как дом будет построен, Подрядчик получает оставшуюся сумму средств. Для этого необходимо предоставить в Банк акт выполненных работ по строительству жилого дома + акт осмотра Моб оценщика (с выездом)"]
[null,null,"Проверка_общая стоимость строительства \n(с учетом внесенного ПВ и МСК)",{"$f":"SUM(D36:D39)+D29+D30","v":{"v":8681661.103187555,"d":"8,681,661.10 "}},{"$nulls":16},"Регион"]
[{"$nulls":21},"МиМО/СПбиЛО"]
[{"$nulls":21},"Краснодарский край"]
[{"$nulls":21},"иные регионы с численностью СВЫШЕ 1 млн чел."]
[{"$nulls":21},"иные регионы с численностью ДО 1 млн чел."]

{"sheet":"Матрица КВ","index":6,"n_rows":9,"n_cols":7,"rows_kept":9,"merged":[[1,1,2,1],[1,3,2,3],[1,4,2,4],[1,5,2,5],[1,6,2,6]]}
[]
[null,"Дисконт к ставке (на весь срок)","Итоговая ставка для клиента","Итоговая ставка для клиента (БЕЗ страховки)","Размер КВ (итоговый)_снижение ставки на весь срок","Размер КВ (итоговый)_снижение ставки на 12 мес.","Размер КВ (итоговый)_снижение ставки на 24 мес."]
[null,null,"(со страховкой)"]
[null,{"v":0.065,"d":"6.50%"},{"$f":"'Матрица ставок_Инфо'!$H$18-'Матрица КВ'!B4","v":{"v":0.21000000000000002,"d":"21.00%"}},{"$f":"'Матрица ставок_Инфо'!$H$17-'Матрица КВ'!B4","v":{"v":0.22000000000000003,"d":"22.00%"}},{"v":0.15063504522020632,"d":"15.06%"},{"v":0.057459850673043406,"d":"5.75%"},{"v":0.09702291912275932,"d":"9.70%"}]
[null,{"v":0.075,"d":"7.50%"},{"$f":"'Матрица ставок_Инфо'!$H$18-'Матрица КВ'!B5","v":{"v":0.2,"d":"20.00%"}},{"$f":"'Матрица ставок_Инфо'!$H$17-'Матрица КВ'!B5","v":{"v":0.21000000000000002,"d":"21.00%"}},{"v":0.1734126713602916,"d":"17.34%"},{"v":0.06637161456556027,"d":"6.64%"},{"v":0.11204257208572783,"d":"11.20%"}]
[null,{"v":0.085,"d":"8.50%"},{"$f":"'Матрица ставок_Инфо'!$H$18-'Матрица КВ'!B6","v":{"v":0.19,"d":"19.00%"}},{"$f":"'Матрица ставок_Инфо'!$H$17-'Матрица КВ'!B6","v":{"v":0.2,"d":"20.00%"}},{"v":0.19627222752354678,"d":"19.63%"},{"v":0.07529321552712508,"d":"7.53%"},{"v":0.1270928718080717,"d":"12.71%"}]
[null,{"v":0.095,"d":"9.50%"},{"$f":"'Матрица ставок_Инфо'!$H$18-'Матрица КВ'!B7","v":{"v":0.18000000000000002,"d":"18.00%"}},{"$f":"'Матрица ставок_Инфо'!$H$17-'Матрица КВ'!B7","v":{"v":0.19000000000000003,"d":"19.00%"}},{"v":0.21926074369560777,"d":"21.93%"},{"v":0.08423064056989842,"d":"8.42%"},{"v":0.14219193139522018,"d":"14.22%"}]
[null,{"v":0.105,"d":"10.50%"},{"$f":"'Матрица ставок_Инфо'!$H$18-'Матрица КВ'!B8","v":{"v":0.17000000000000004,"d":"17.00%"}},{"$f":"'Матрица ставок_Инфо'!$H$17-'Матрица КВ'!B8","v":{"v":0.18000000000000005,"d":"18.00%"}},null,{"v":0.09319290589342503,"d":"9.32%"},{"v":0.15736713629003404,"d":"15.74%"}]
[null,{"v":0.115,"d":"11.50%"},{"$f":"'Матрица ставок_Инфо'!$H$18-'Матрица КВ'!B9","v":{"v":0.16000000000000003,"d":"16.00%"}},{"$f":"'Матрица ставок_Инфо'!$H$17-'Матрица КВ'!B9","v":{"v":0.17000000000000004,"d":"17.00%"}},null,{"v":0.10219351271439231,"d":"10.22%"},{"v":0.17265959416192317,"d":"17.27%"}]

{"sheet":"Ввод параметров","index":7,"n_rows":36,"n_cols":13,"rows_kept":36,"hidden":true}
[]
[null,"Категория клиента","Зарплатник/Сотрудник/А-Клуб"]
[null,"Личное страхование","Да"]
[]
[null,"Регион приобретения недвижимости","МиМО/СПбиЛО"]
[null,"Программа кредитования","Госпрограмма 2020",{"$nulls":8},"Цели кредита","Подрядчики"]
[null,"Цель кредита","покупка земли и строительство дома","Заполняет сотрудник ОП!!!",{"$nulls":7},"строительство дома на своем участке","Стандарт"]
[null,"Категория подрядчика","Ключевой","Заполняет сотрудник ОП!!! Категория партнера устанавливается при аккредитации. В ПЕГУ залит справочник, при выборе партнера видно, к какой категории он относится. Если это новый партнер, который еще не аккредитован, то по умолчанию при аккредитации ему будет присвоена категории Стандарт",{"$nulls":7},"покупка земли и строительство дома","Ключевой"]
[{"$nulls":6},"Клиент \"улица\" (НЕ Зарплатный клиент/А-Клуб/Сотрудники) \nБЕЗ личного страхования",{"$f":"'Матрица ставок_Инфо'!C17","v":{"v":0.06,"d":"6.00%"}},{"$f":"'Матрица ставок_Инфо'!E17","v":{"v":0.09,"d":"9.00%"}},{"$f":"'Матрица ставок_Инфо'!G17","v":{"v":0.24000000000000002,"d":"24.00%"}},null,null,"Эксклюзив"]
[null,"Исходные данные для расчетов",{"$nulls":4},"Клиент \"улица\" (НЕ Зарплатный клиент/А-Клуб/Сотрудники) \nС договором личного страхования",{"$f":"'Матрица ставок_Инфо'!C18","v":{"v":0.06,"d":"6.00%"}},{"$f":"'Матрица ставок_Инфо'!E18","v":{"v":0.08,"d":"8.00%"}},{"$f":"'Матрица ставок_Инфо'!G18","v":{"v":0.23,"d":"23.00%"}}]
[null,"Стоимость приобретаемого земельного участка",{"v":1000000,"d":"1,000,000.00 "},"Заполняет сотрудник ОП ТОЛЬКО при цели кредита \"Покупка земли и строительство дома\"!!!",null,null,"Клиент Зарплатный клиент/А-Клуб/Сотрудники\nБЕЗ личного страхования",{"$f":"'Матрица ставок_Инфо'!C19","v":{"v":0.06,"d":"6.00%"}},{"$f":"'Матрица ставок_Инфо'!E19","v":{"v":0.09,"d":"9.00%"}},{"$f":"'Матрица ставок_Инфо'!G19","v":{"v":0.24000000000000002,"d":"24.00%"}},null,1]
[null,"Стоимость строительства",{"v":12000000,"d":"12,000,000.00 "},"Заполняет сотрудник ОП!!!",null,null,"Клиент Зарплатный клиент/А-Клуб/Сотрудники\nС договором личного страхования",{"$f":"'Матрица ставок_Инфо'!C20","v":{"v":0.06,"d":"6.00%"}},{"$f":"'Матрица ставок_Инфо'!E20","v":{"v":0.08,"d":"8.00%"}},{"$f":"'Матрица ставок_Инфо'!G20","v":{"v":0.23,"d":"23.00%"}}]
[null,"Общая стоимость для расчета кредита",{"$f":"C11+C12","v":{"v":13000000,"d":"13,000,000.00 "}},"Рассчитывается автоматически"]
[null,"Размер собственных средств (ПВ)_без учета МСК",{"v":3200000,"d":"3,200,000.00 "},"Заполняет сотрудник ОП!!!",{"$nulls":7},"Категория клиента","Улица"]
[null,"Часть ПВ, которая уже внесена на земельный участок",0,"Заполняет сотрудник ОП, если по земле был внесен аванс!!!",{"$nulls":8},"Зарплатник/Сотрудник/А-Клуб"]
[null,"Часть ПВ, которая уже внесена на строительство",0,"Заполняет сотрудник ОП, если по договору подряда был внесен аванс!!!"]
[null,"Размер МСК в счет ПВ",{"v":800000,"d":"800,000.00 "},"Заполняет сотрудник ОП при использовании МСК!!!"]
[null,"Размер кредитных средств",{"$f":"C13-C14-C17","v":{"v":9000000,"d":"9,000,000.00 "}},{"$f":"IF(C18>12000000,\"Внимание, превышена максимальная суммы кредита. Требуется Комбо-ипотека\",\"\")","v":""},{"$nulls":8},"Нет"]
[null,"К/З",{"$f":"C18/C13","v":{"v":0.6923076923076923,"d":"69%"}},{"$f":"IF(C19>79.9%,\"Внимание! Необходимо увеличить размер ПВ; предельный К/З = 79,9%\",\"\")","v":""}]
[]
[]
[null,"Расчетные данные","Часть кредита по госпрограмме","Часть кредита по Комбо-ипотеке"]
[null,"Сумма кредита",{"$f":"IF(AND(C5=\"МиМО/СПбиЛО\",C18>12000000),12000000,IF(AND(C5=\"иные регионы\",C18>6000000),6000000,C18))","v":{"v":9000000,"d":"9,000,000.00 "}},{"$f":"IF(OR(C23=12000000,C23=6000000),(C18-C23),\"\")","v":""}]
[null,"Ставка по кредиту ",{"$f":"IF(AND(C2=\"Улица\",C3=\"Да\",C6=\"Семейная ипотека\"),H10,IF(AND(C2=\"Зарплатник/Сотрудник/А-Клуб\",C3=\"Да\",C6=\"Семейная ипотека\"),H12,IF(AND(C2=\"Улица\",C3=\"Да\",C6=\"Госпрограмма 2020\"),I10,IF(AND(C2=\"Зарплатник/Сотрудник/А-Клуб\",C3=\"Да\",C6=\"Госпрограмма 2020\"),I12,IF(AND(C2=\"Улица\",C3=\"Нет\",C6=\"Семейная ипотека\"),H9,IF(AND(C2=\"Зарплатник/Сотрудник/А-Клуб\",C3=\"Нет\",C6=\"Семейная ипотека\"),H11,IF(AND(C2=\"Улица\",C3=\"Нет\",C6=\"Госпрограмма 2020\"),I9,IF(AND(C2=\"Зарплатник/Сотрудник/А-Клуб\",C3=\"Нет\",C6=\"Госпрограмма 2020\"),I11,\"\"))))))))","v":{"v":0.08,"d":"8.00%"}},{"$f":"IF(AND(C5=\"МиМО/СПбиЛО\",C18<12000000),\"\",IF(AND(C2=\"Улица\",C3=\"Да\"),J10,IF(AND(C2=\"Зарплатник/Сотрудник/А-Клуб\",C3=\"Да\"),J12,IF(AND(C2=\"Улица\",C3=\"Нет\"),J9,IF(AND(C2=\"Зарплатник/Сотрудник/А-Клуб\",C3=\"Нет\"),J11,IF(AND(C5=\"иные регионы\",C18<6000000),\"\",IF(AND(C2=\"Улица\",C3=\"Да\"),J10,IF(AND(C2=\"Зарплатник/Сотрудник/А-Клуб\",C3=\"Да\"),J12,IF(AND(C2=\"Улица\",C3=\"Нет\"),J9,IF(AND(C2=\"Зарплатник/Сотрудник/А-Клуб\",C3=\"Нет\"),J11,\"\"))))))))))","v":""},{"$nulls":7},"Программа","Семейная ипотека"]
[null,"Средневзвешенная ставка (с учетом КОМБО-Ипотеки)",{"$f":"IF(C18>12000000,(C23*C24+(D23)*D24)/(C18),C24)","v":{"v":0.08,"d":"8.00%"}},{"$nulls":9},"Госпрограмма 2020"]
[null,"Срок кредитования, мес.",{"v":242,"d":"242.00"},{"$f":"IF(MOD(C26-2,12)>0,\"Срок кредитования должен быть кратен 12 мес + 2 мес.\",\"\")","v":""}]
[null,"Платеж по кредиту",{"$f":"PMT(C25/12,C26,C18)","v":{"v":-75027.37821720436,"d":"-75,027.38 ₽"}},"Рассчитывается автоматически"]
[{"$nulls":11},"Регион","МиМО/СПбиЛО"]
[{"$nulls":12},"иные регионы"]
[null,"Аккредитивы","Базовые значения","Условия доступа к аккредитиву (Подсказка)"]
[null,"1 аккредитив (деньги пойдут на оплату зем. участка)",{"$f":"IF(Цель_кредита=\"покупка земли и строительство дома\",C11-C15,0)","v":{"v":1000000,"d":"1,000,000.00 "}},{"$f":"IF(C31=\"\",\"\",'Матрица по аккред._Инфо'!F3)","v":"Чтобы продавец зем.участка получил деньги за земельный участок, нужно предоставить документы о переходе права на зем. участок и ипотеки в пользу Банка"}]
[null,"2 аккредитив (деньги пойдет на строительство фундамента)",{"$f":"IF((IF($C$8=\"Стандарт\",($C$12*'Матрица по аккред._Инфо'!C4),IF($C$8=\"Ключевой\",($C$12*'Матрица по аккред._Инфо'!D4),IF($C$8=\"Эксклюзив\",($C$12*'Матрица по аккред._Инфо'!E4),0)))-C16-C17)<0,0,(IF($C$8=\"Стандарт\",($C$12*'Матрица по аккред._Инфо'!C4),IF($C$8=\"Ключевой\",($C$12*'Матрица по аккред._Инфо'!D4),IF($C$8=\"Эксклюзив\",($C$12*'Матрица по аккред._Инфо'!E4),0)))-C16-C17))","v":{"v":2800000,"d":"2,800,000.00 "}},{"$f":"IF(C32=\"\",\"\",'Матрица по аккред._Инфо'!F4)","v":"Чтобы подрядчик получил деньги за построенный фундамент и частично на дальнейшее строительство клиент должен предоставить документы, подтверждающие готовность фундамента - акт выполненных работ + акт осмотра Моб оценщика (с выездом Моб оценщика)"}]
[null,"3 аккредитив (деньги пойдут оставшиейся строительные этапы)",{"$f":"IF(((IF($C$8=\"Стандарт\",($C$12*'Матрица по аккред._Инфо'!C4),IF($C$8=\"Ключевой\",($C$12*'Матрица по аккред._Инфо'!D4),IF($C$8=\"Эксклюзив\",($C$12*'Матрица по аккред._Инфо'!E4),0)))-C16-C17)<0),IF($C$8=\"Стандарт\",($C$12*'Матрица по аккред._Инфо'!C5),IF($C$8=\"Ключевой\",($C$12*'Матрица по аккред._Инфо'!D5),IF($C$8=\"Эксклюзив\",($C$12*'Матрица по аккред._Инфо'!E5),0)))+(IF($C$8=\"Стандарт\",($C$12*'Матрица по аккред._Инфо'!C4),IF($C$8=\"Ключевой\",($C$12*'Матрица по аккред._Инфо'!D4),IF($C$8=\"Эксклюзив\",($C$12*'Матрица по аккред._Инфо'!E4),0)))-C16-C17),IF($C$8=\"Стандарт\",($C$12*'Матрица по аккред._Инфо'!C5),IF($C$8=\"Ключевой\",($C$12*'Матрица по аккред._Инфо'!D5),IF($C$8=\"Эксклюзив\",($C$12*'Матрица по аккред._Инфо'!E5),0))))","v":{"v":1800000,"d":"1,800,000.00 "}},{"$f":"IF(C33=\"\",\"\",'Матрица по аккред._Инфо'!F5)","v":"После того, как стеновой комплект будет построен, подрядчик может получить деньги для продолжения строительства жилого дома. Для этого потребуется предоставить в Банк акт выполненных работ по завершению строительства стенового компекта + акт осмотра Моб оценщика (с выездом Моб оценщика)"}]
[null,"4 пост-оплата (в этот момент  дом уже достроен, подрядчик получит деньги после подписания акта до завершении строительства)",{"$f":"IF($C$8=\"Стандарт\",($C$12*'Матрица по аккред._Инфо'!C7),IF($C$8=\"Ключевой\",($C$12*'Матрица по аккред._Инфо'!D6),IF($C$8=\"Эксклюзив\",($C$12*'Матрица по аккред._Инфо'!E7),0)))","v":{"v":4200000,"d":"4,200,000.00 "}},{"$f":"IF(C34=\"\",\"\",'Матрица по аккред._Инфо'!F7)","v":"После того, как дом будет построен, Подрядчик получает оставшуюся сумму средств. Для этого необходимо предоставить в Банк акт выполненных работ по строительству жилого дома + акт осмотра Моб оценщика (с выездом Моб оценщика)"}]
[null,"Проверка_общая стоимость строительства",{"$f":"SUM(C32:C34)","v":{"v":8800000,"d":"8,800,000.00 "}}]
[null,null,{"$f":"IF(C35=C12,\"Проверка пройдена\",\"Стоимость строительства не совпадает с суммой аккредитивов\")","v":"Стоимость строительства не совпадает с суммой аккредитивов"}]

{"sheet":"Участники","index":8,"n_rows":20,"n_cols":15,"rows_kept":20,"hidden":true,"merged":[[1,2,1,3],[2,2,2,3],[4,2,4,3]]}
[{"$nulls":11},"Наполнение списка",null,null,"Наполнение списка"]
[null,"Программа","Госпрограмма 2020",{"$nulls":8},"Семейная ипотека",null,null,"Строительство дома на своем участке"]
[null,"Цель кредита","Покупка земли и строительство дома",{"$nulls":8},"Госпрограмма 2020",null,null,"Покупка земли и строительство дома"]
[]
[null,"Требования к составу участников",{"$f":"IF(AND(C2=\"Семейная ипотека\",C3=\"Строительство дома на своем участке\"),_xlfn.CONCAT(\"- Все собственники земли должны соответствовать условиям Семейной ипотеки (иметь детей). \", \"Если кто-то из собственников земли не имеет детей, то Банк не сможет согласовать кредит по Семейной ипотеке. \",\"Можно предложить воспользоваться Госпрограммой 2020. ; \n\n- По завершению строительства дом должен быть оформлен в собственность тех же лиц, кому принадлежит земля. При этом дом должен быть оформлен в тех же долях, что и земля. \", \"Изменение размера долей или режима собственности не допускается\"),IF(AND(C2=\"Семейная ипотека\",C3=\"Покупка земли и строительство дома\"),_xlfn.CONCAT(\"- Земля должна приобретаться только в собственность лиц, соответствующих требованиям Семейной ипотеки (т.е. имеющих детей). \", \"Земля не может оформляться в собственность иных лиц! При этом иные лица могут быть привлечены в качестве созаемщиков, с учетом требования по наличию дохода (в качестве созаемщика без дохода может выступать только супруг (-а). \",\"Если клиенты хотят включить в состав собственников земли родственников (не имеющих детей), можно предложить оформить кредит по Госпрограмме 2020.\n\n- По завершению строительства дом \", \"должен быть оформлен в собственность тех же лиц, в чью собственность будет приобретаться земля. \", \"При этом дом должен быть оформлен в тех же долях, что и земля. \", \"Изменение размера долей или режима собственности не допускается.\"),IF(AND(C2=\"Госпрограмма 2020\",C3=\"Строительство дома на своем участке\"),_xlfn.CONCAT(\"- Все собственники земли должны быть совершеннолетними гражданами РФ. \", \"Все собственники земли должны иметь доход, за исключением супруга (-и) заемщика. \",\"Если кто-то из собственников земли не имеет дохода (за исключением супруги заемщика), такой земельный участок не может быть согласован. \n\n- По завершению строительства \", \"дом должен быть оформлен в собственность тех же лиц, кому принадлежит земля. При этом дом должен быть оформлен в тех же долях, что и земля. \", \"Изменение размера долей или режима собственности не допускается\"),IF(AND(C2=\"Госпрограмма 2020\",C3=\"Покупка земли и строительство дома\"),_xlfn.CONCAT(\"- Земля должна приобретаться только в собственность совершеннолетних граждан РФ, имещих доход (исключение - супруг (а) заемщика, он может быть без дохода).; \n\n- По завершению строительства дом \", \"должен быть оформлен в собственность тех же лиц, в чью собственность будет приобретаться земля. \", \"При этом дом должен быть оформлен в тех же долях, что и земля. \", \"Изменение размера долей или режима собственности не допускается.\"),\"\"))))","v":"- Земля должна приобретаться только в собственность совершеннолетних граждан РФ, имещих доход (исключение - супруг (а) заемщика, он может быть без дохода).; \n\n- По завершению строительства дом должен быть оформлен в собственность тех же лиц, в чью собственность будет приобретаться земля. При этом дом должен быть оформлен в тех же долях, что и земля. Изменение размера долей или режима собственности не допускается."}]
[]
[null,"Проверь себя (на примере СИ)","Сотрудник ОП может проверить состав участников сделки (еще доработаем блок)"]
[]
[null,"Блок заполняется сотрудников ОП!!!",{"$nulls":3},"Блок заполняется автоматически!!!"]
[null,"Кол-во собственников земли",3,null,null,"Кол-во будущих собственников жилого дом",{"$f":"C10","v":3},{"$nulls":4},"Наполнение списка"]
[{"$nulls":11},"Да"]
[null,"Состав собственников ЗУ","ФИО","Относится к ЦА Семейки",null,"Состав будущих собственников жилого дома","Готов ли банк рассматривать в качестве залогодателя",{"$nulls":4},"Нет"]
[null,"Собственник ЗУ №1","Иванов И.И.","Да",null,{"$f":"C13","v":"Иванов И.И."},{"$f":"IF(D13=\"Да\",\"Да\",\"Нет\")","v":"Да"}]
[null,"Собственник ЗУ №2","Иванова М.П.","Да",null,{"$f":"C14","v":"Иванова М.П."},{"$f":"IF(D14=\"Да\",\"Да\",\"Нет\")","v":"Да"}]
[null,"Собственник ЗУ №3","Петров С.С.","Нет",null,{"$f":"C15","v":"Петров С.С."},{"$f":"IF(D15=\"Да\",\"Да\",\"Нет\")","v":"Нет"}]
[null,"Собственник ЗУ №4"]
[]
[]
[null,"Заключение о возможности проведения сделки с указанным составом собственников зем. участка"]
[null,{"$f":"IF(ISNA(MATCH(L12,G13:G16,0)),\"Поздравляем, состав участников согласован\",\"К сожалению, состав участников не может быть согласован по Семейной ипотеке. Предложите клиентам воспользоваться Госпрограммой 2020\")","v":"К сожалению, состав участников не может быть согласован по Семейной ипотеке. Предложите клиентам воспользоваться Госпрограммой 2020"}]

{"sheet":"Материалы стен","index":9,"n_rows":15,"n_cols":6,"rows_kept":15,"hidden":true}
[]
[null,"Допустимые материалы стен \n(справочник Пеги) ","Комментарии (что можно отнести к категории материалов)",null,"НЕдопустимые материалы стен","Комментарии (что можно отнести к категории материалов)"]
[null,"Кирпич","- Все виды кирпича\n- Поротерм (Pototherm)\n- Керамический блок",null,"Камыш"]
[null,"Каменный","НЕ ВЫБИРАТЬ В ПЕГЕ (будет отказ)",null,"Шлакоблоки"]
[null,"Каркасный ",null,null,"Ракушечник/ракушняк"]
[null,"Металлокаркасные панели/легкие конструкции","- ЛСТК\n- сэндвич-панели",null,"Фанера"]
[null,"Сип-панели",null,null,"Металлические листы"]
[null,"Монолит","- Железобетон\n- Арболит\n- Полистиролбетон (ПСБ)\n- Пенополистиролбетон\n- Стиропорбетон\n- Стиропорпенобетон\n- Пенопластобетон\n- Опилкобетон",null,"Саман"]
[null,"Панель","- Однослойные панели\n- Трехслойные панели\n- Префаб каркасник (панели)\n- CLT",null,"Солома"]
[null,"Газоблок","- Газоблок\n- Газобетон",null,"Шпалы"]
[null,"Пеноблок","- Пеноблок\n- Пенобетон",null,"Грунт"]
[null,"Твинблок","- Твинблок"]
[null,"Брус","- Все виды бруса (кроме клееного бруса)"]
[null,"Клееный брус","- Клееный брус"]
[null,"Кирпично-мололитный"]

{"sheet":"Матрица ставок_Инфо","index":10,"n_rows":24,"n_cols":8,"rows_kept":24,"merged":[[1,1,2,1],[1,2,1,7],[5,2,5,7],[10,2,10,7],[14,1,15,1],[14,2,14,7]]}
[]
[null,"Ипотека на строительство жилого дома\n"]
[null,null,"Семейная ипотека\n(К/З <= 79,9%) ","Семейная ипотека для ДФО\n(К/З <= 79,9%) ","Льготная ипотека \nс гос. поддержкой \n(К/З <= 69,9%) ","IT- ипотека \nс гос. поддержкой \n(К/З <= 79,9%) ","Стандартная программа \n(только для Комбо-ипотеки)\n(К/З <= 79,9%) ","Собственная программа Банка \n(К/З <= 79,9%) "]
[null,"БАЗОВАЯ СТАВКА ",{"v":0.06,"d":"6.00%"},{"v":0.05,"d":"5.00%"},{"v":0.08,"d":"8.00%"},{"v":0.06,"d":"6.00%"},{"v":0.23,"d":"23.00%"},{"v":0.275,"d":"27.50%"}]
[]
[null,"Дисконты К БАЗОВОЙ СТАВКЕ \n(дисконты на сегмент и личное страхование могут суммироваться)"]
[null,"А-Клуб/Сотрудники",{"v":0,"d":"0.00%"},{"$f":"C7","v":{"v":0,"d":"0.00%"}},{"v":0,"d":"0.00%"},{"v":0,"d":"0.00%"},{"v":0,"d":"0.00%"},{"v":0,"d":"0.00%"}]
[null,"Заключение договора личного страхования",{"v":0,"d":"0.00%"},{"v":0,"d":"0.00%"},{"v":0,"d":"0.00%"},{"v":0,"d":"0.00%"},{"v":0,"d":"0.00%"},{"v":0,"d":"0.00%"}]
[null,"Быстрый выход на сделку",{"v":0,"d":"0.00%"},{"$f":"C9","v":{"v":0,"d":"0.00%"}},{"v":0,"d":"0.00%"},{"v":0,"d":"0.00%"},{"v":0,"d":"0.00%"},{"v":0,"d":"0.00%"}]
[]
[null,"Надбавки К БАЗОВОЙ СТАВКЕ"]
[null,"Отказ от договора личного страхования","-",{"$f":"C12","v":"-"},{"v":0.01,"d":"1.00%"},"-",{"v":0.01,"d":"1.00%"},{"v":0.01,"d":"1.00%"}]
[]
[null,"Расчет ставки с учетом дисконтов и надбавок"]
[null,"Ипотека на строительство жилого дома\n"]
[null,null,"Семейная ипотека\n(К/З <= 79,9%) ","Семейная ипотека для ДФО\n(К/З <= 79,9%) ","Льготная ипотека \nс гос. поддержкой \n(К/З <= 69,9%) ","IT- ипотека \nс гос. поддержкой \n(К/З <= 79,9%) ","Комбо-ипотека (в части суммы, превышающей стандартные суммы по госпрограммам - 12/6 млн руб.)\n(К/З <= 79,9%) ","Собственная программа Банка \n(пока в формате Нестандарта)\n(К/З <= 79,9%) "]
[null,"Клиент \"улица\" или зп-клиент (НЕ А-Клуб/Сотрудники) \nБЕЗ личного страхования",{"$f":"C4","v":{"v":0.06,"d":"6.00%"}},{"$f":"D4","v":{"v":0.05,"d":"5.00%"}},{"$f":"E4+E12","v":{"v":0.09,"d":"9.00%"}},{"$f":"F4","v":{"v":0.06,"d":"6.00%"}},{"$f":"G4+G12","v":{"v":0.24000000000000002,"d":"24.00%"}},{"$f":"H4+H12","v":{"v":0.28500000000000003,"d":"28.50%"}}]
[null,"Клиент \"улица\" или зп-клиент (НЕ А-Клуб/Сотрудники) \nС договором личного страхования",{"$f":"C4+C8","v":{"v":0.06,"d":"6.00%"}},{"$f":"D4+D8","v":{"v":0.05,"d":"5.00%"}},{"$f":"E4+E8","v":{"v":0.08,"d":"8.00%"}},{"$f":"F4+F8","v":{"v":0.06,"d":"6.00%"}},{"v":0.23,"d":"23.00%"},{"$f":"H4+H8","v":{"v":0.275,"d":"27.50%"}}]
[null,"Клиент А-Клуб/Сотрудники\nБЕЗ личного страхования",{"$f":"C4+C7","v":{"v":0.06,"d":"6.00%"}},{"$f":"D4+D7","v":{"v":0.05,"d":"5.00%"}},{"$f":"E4+E7+E12","v":{"v":0.09,"d":"9.00%"}},{"$f":"F4+F7","v":{"v":0.06,"d":"6.00%"}},{"$f":"G4+G7+G12","v":{"v":0.24000000000000002,"d":"24.00%"}},{"$f":"H4+H7+H12","v":{"v":0.28500000000000003,"d":"28.50%"}}]
[null,"Клиент А-Клуб/Сотрудники\nС договором личного страхования",{"$f":"C4+C7+C8","v":{"v":0.06,"d":"6.00%"}},{"$f":"D4+D7+D8","v":{"v":0.05,"d":"5.00%"}},{"$f":"E4+E7+E8","v":{"v":0.08,"d":"8.00%"}},{"$f":"F4+F7+F8","v":{"v":0.06,"d":"6.00%"}},{"v":0.23,"d":"23.00%"},{"$f":"H4+H7+H8","v":{"v":0.275,"d":"27.50%"}}]
[null,"Клиент \"улица\" или зп-клиент (НЕ А-Клуб/Сотрудники) \nБЕЗ личного страхования, вышедший на сделку в течение 30 дней после одобрения",{"$f":"C17+$C$9","v":{"v":0.06,"d":"6.00%"}},{"$f":"D17+$D$9","v":{"v":0.05,"d":"5.00%"}},{"$f":"E17+$E$9","v":{"v":0.09,"d":"9.00%"}},{"$f":"F17+$F$9","v":{"v":0.06,"d":"6.00%"}},{"$f":"G17+$G$9","v":{"v":0.24000000000000002,"d":"24.00%"}},{"$f":"H17+$H$9","v":{"v":0.28500000000000003,"d":"28.50%"}}]
[null,"Клиент \"улица\" или зп-клиент (НЕ А-Клуб/Сотрудники) \nС договором личного страхования, вышедший на сделку в течение 1 месяца после одобрения",{"$f":"C18+$C$9","v":{"v":0.06,"d":"6.00%"}},{"$f":"D18+$D$9","v":{"v":0.05,"d":"5.00%"}},{"$f":"E18+$E$9","v":{"v":0.08,"d":"8.00%"}},{"$f":"F18+$F$9","v":{"v":0.06,"d":"6.00%"}},{"$f":"G18+$G$9","v":{"v":0.23,"d":"23.00%"}},{"$f":"H18+$H$9","v":{"v":0.275,"d":"27.50%"}}]
[null,"Клиент А-Клуб/Сотрудники\nБЕЗ личного страхования, вышедший на сделку в течение 1 месяца после одобрения",{"v":0.06,"d":"6.00%"},{"v":0.05,"d":"5.00%"},{"v":0.09,"d":"9.00%"},{"v":0.06,"d":"6.00%"},{"v":0.24000000000000002,"d":"24.00%"},{"v":0.28500000000000003,"d":"28.50%"}]
[null,"Клиент А-Клуб/Сотрудники\nС договором личного страхования, вышедший на сделку в течение 1 месяца после одобрения",{"v":0.06,"d":"6.00%"},{"v":0.05,"d":"5.00%"},{"v":0.08,"d":"8.00%"},{"v":0.06,"d":"6.00%"},{"v":0.23,"d":"23.00%"},{"v":0.275,"d":"27.50%"}]

{"sheet":"Матрица по аккред._Инфо","index":11,"n_rows":15,"n_cols":6,"rows_kept":15,"hidden":true}
[]
["Номер аккредитива","Цель","Стандарт","Ключевой","Эксклюзив","Условия доступа к аккредитиву"]
[1,"покупка земли (% от стоимости зем. участка)",{"v":1,"d":"100%"},{"v":1,"d":"100%"},{"v":1,"d":"100%"},"Чтобы продавец зем.участка получил деньги за земельный участок, нужно предоставить документы о переходе права на зем. участок и ипотеки в пользу Банка"]
[2,"фундамент/стеновой комплект",{"v":0.3,"d":"30%"},{"v":0.3,"d":"30%"},{"v":0.6,"d":"60%"},"Чтобы подрядчик получил деньги за построенный фундамент и частично на дальнейшее строительство клиент должен предоставить документы, подтверждающие готовность фундамента - акт выполненных работ + акт осмотра Моб оценщика (с выездом Моб оценщика)"]
[3,"теплый контур",{"v":0.15,"d":"15%"},{"v":0.15,"d":"15%"},{"$f":"100%-E4","v":{"v":0.4,"d":"40%"}},"После того, как стеновой комплект будет построен, подрядчик может получить деньги для продолжения строительства жилого дома. Для этого потребуется предоставить в Банк акт выполненных работ по завершению строительства стенового компекта + акт осмотра Моб оценщика (с выездом Моб оценщика)"]
[4,"коммуникации и отделка",{"v":0.35,"d":"35%"},{"v":0.35,"d":"35%"},{"v":0,"d":"0%"},"После того, как теплый контур будет построен, Подрядчик получает оставшуюся сумму средств. Для этого необходимо предоставить в Банк акт выполненных работ по завершению строительства теплого контура + акт осмотра Моб оценщика (с выездом Моб оценщика)"]
[5,"пост-оплата",{"$f":"100%-C4-C5-C6","v":{"v":0.19999999999999996,"d":"20%"}},{"v":0.2,"d":"20%"},{"$f":"100%-E4-E5","v":{"v":0,"d":"0%"}},"После того, как дом будет построен, Подрядчик получает оставшуюся сумму средств. Для этого необходимо предоставить в Банк акт выполненных работ по строительству жилого дома + акт осмотра Моб оценщика (с выездом Моб оценщика)"]
[]
[]
["Номер аккредитива","Цель","GoodWood",null,null,"Условия доступа к аккредитиву"]
[1,"покупка земли (% от стоимости зем. участка)",{"v":1,"d":"100%"},null,null,"Чтобы продавец зем.участка получил деньги за земельный участок, нужно предоставить документы о переходе права на зем. участок и ипотеки в пользу Банка"]
[2,"начало строительства (фундамент)",{"v":0.301,"d":"30%"},null,null,"Чтобы подрядчик получил деньги на начало строительства дома клиент должен предоставить документы, подтверждающие регистрацию ипотеки на зем.участок в пользу Банка"]
[3,"коробка",{"v":0.499,"d":"50%"},null,null,"После того, как фундамент будет построен, подрядчик может получить деньги для продолжения строительства жилого дома. Для этого потребуется предоставить в Банк акт выполненных работ по строительству фундамента"]
[4,"стены",{"$f":"100%-C12-C13","v":{"v":0.20000000000000007,"d":"20%"}},null,null,"После того, как стеновой комплект будет построен, Подрядчик получает оставшуюся сумму средств. Для этого необходимо предоставить в Банк акт выполненных работ по строительству стенового комплекта"]
[5,"пост-оплата",{"v":0,"d":"0%"},null,null,"После того, как дом будет построен, Подрядчик получает оставшуюся сумму средств. Для этого необходимо предоставить в Банк акт выполненных работ по строительству жилого дома"]

{"sheet":"Участники_проверка на заведении","index":12,"n_rows":17,"n_cols":12,"rows_kept":17,"hidden":true}
[]
[null,"Строительство на своем земельном участке"]
[]
[null,"Кол-во собственников земли",3,"Заполняется сотрудников ОП!!!",null,"Кол-во будущих собственников жилого дом",{"$f":"C4","v":3},{"$nulls":4},"Наполнение списка"]
[{"$nulls":11},"Да"]
[null,"Состав собственников ЗУ","ФИО","Относится к ЦА Семейки",null,"Состав будущих собственников жилого дома","Готов ли банк рассматривать в качестве залогодателя",{"$nulls":4},"Нет"]
[null,"Собственник ЗУ №1","Иванов И.И.","Да",null,{"$f":"C7","v":"Иванов И.И."},{"$f":"IF(D7=\"Да\",\"Да\",\"Нет\")","v":"Да"}]
[null,"Собственник ЗУ №2","Иванова М.П.","Нет",null,{"$f":"C8","v":"Иванова М.П."},{"$f":"IF(D8=\"Да\",\"Да\",\"Нет\")","v":"Нет"}]
[null,"Собственник ЗУ №3","Петров С.С.","Да",null,{"$f":"C9","v":"Петров С.С."},{"$f":"IF(D9=\"Да\",\"Да\",\"Нет\")","v":"Да"}]
[null,"Собственник ЗУ №4"]
[]
[]
[null,"Заключение о возможности проведения сделки с указанным составом собственников зем. участка"]
[null,{"$f":"IF(ISNA(MATCH(L6,G7:G10,0)),\"Поздравляем, состав участников согласован\",\"К сожалению, состав участников не может быть согласован. Банк не  сможет одобрить строительство на данном земельном участке\")","v":"К сожалению, состав участников не может быть согласован. Банк не  сможет одобрить строительство на данном земельном участке"}]
[]
[null,"Финальные параметры:"]
[null,"ФИО","Роль в сделке","Доля в праве собственности"]